Workbook

Sheet Inledning & innehåll
C2: Beräkningsverktyg för att uppskatta kostnader för insatser som föranletts av våld i nära relationer
C5: Syftet med beräkningsverktyget är att ge kommuner och regioner möjlighet att systematiskt beräkna kostnaderna av insatser som har föranletts av våld i nära relationer, både för den utsatte, andra familjemedlemmar samt våldsutövaren. Den bör också kunna fungera som ett dialogverktyg och möjliggöra diskussioner kring våldet och dess kostnader. Med hjälp av beräkningsverktyget kan man både synliggöra hur mycket våld i nära relationer kostar en viss organisation, och vilken totalkostnad en enskild våldsutsatt individ innebär för fler organisationer. Verktyget kan användas av alla som har information om insatsens målgrupp, men primära användare är kommuner och regioner. På de olika bladen i denna Excel-fil finns insatser med schablonkostnader sorterade efter huvudman (schablonkostnaderna är justerbara). Fyll i de insatser som är relevanta för din organisation, så beräknas den sammanlagda kostanden för din organisation automatiskt. På bladet längst till höger (”Totalkostnad alla org.”) kan du, om du har sammanställt insatser från andra organisationer, se totalkostnaden för samtliga organisationers insatser. Eftersom kostnadsskattningen är genomförd utifrån ett verksamhetsperspektiv underskattas där med de totala kostnaderna för våld i nära relationer. Exempel på sådana kostnader och som inte ingår i verktyget är nedsatt livskvalitet, social isolering, ekonomiska problem och barns lidande, som inte nödvändigtvis leder till insatser. Beräkningsverktyget kan ändå tjäna ett syfte i att synliggöra de verksamhetskostnader som våldet medför samt att synliggöra problematiken.
C17: Till beräkningsverktyget finns även en tillhörande användarmanual – Instruktion till Socialstyrelsens beräkningsverktyg för att uppskatta kostnader för insatser som föranletts av våld i nära relationer (Dnr. 19050/2017).
C21: Så här går du tillväga:
C22: Steg 1. Välj huvudman. Steg 2. Fyll i antal enheter i respektive insatser inom ditt verksamhetsområde. Steg 3. Klicka på Resultat & grafer för att erhålla sammanfattande tabeller och figurer fördelat per huvudman. Om man önskar följa kostnader för enskild individ över flera organisationer följ steg 1 och 2 för samtliga organisationer. Därefter: Steg 4. Klicka på fliken Totalkostnad alla org. Här finns de sammanlagda kostnaderna för alla insatser samt kostnaderna presenterade per organisation på översiktlig nivå. För att rensa antaganden finns under denna flik även knappen Rensa antaganden.
C32: Innehållsförteckning
C38: Skola och förskola | E38: Ungdomsmottagning | G38: Primärvård | I38: Kvinnojour
C39: Socialtjänst | G39: Specialiserad vård | I39: Brottsofferjour
C40: Sammanställning kommun | G40: Tandvård
G41: Rättspsykiatrisk avdelning/klinik
G42: Oberoende av verksamhet
G43: Sammanställning region
C50: Samverkan mellan olika verksamheter | E50: Försäkringskassan | G50: Polisen | I50: Arbetsgivare
E51: Skatteverket | G51: Åklagarmyndigheten
E52: Kronofogdemyndigheten | G52: Domstol
E53: Brottsoffermyndigheten | G53: Kriminalvård
E54: Sammanställning stat | G54: Advokatbyrå
G55: Rättsmedicinalverket
G56: Sammanställning rättsväsende

Sheet Egna beräkningar (hidden)
A1: Aktivitet/insats | B1: Beskrivning | C1: Enhet | D1: Enhetskostnad | E1: Egen skattning av volym | F1: Summa kostnad | H1: Låg resursåtgång (antal respektive motivering) | J1: Hög resursåtgång (antal respektive motivering)
A3: Skola och förskola
A4: Besök skolläkare | B4: I vissa fall remitteras barnet/ungdomen till skolläkare för vidare behandling. | C4: 1 timme (skolläkare) | D4: 1900 | F4: =D4*E4 -> 0
A5: Byte av skola | B5: När barn behöver byta skola är det framför allt rektorn som blir involverad, både på mottagande och avlämnande skola. | C5: 1 skolbyte (2 rektorer, 1,5 timmar var) | D5: 3700 | F5: 0
A6: Elevvårdskonferens | B6: När problemet uppdagas träffas rektor, skolsköterska och kurator i elevvårdskonferensen för att diskutera hur situationen ska hanteras. Ibland deltar även lärare. | C6: 1 elevvårdskonferens (kurator, skolsköterska, rektor, 1,5 timmar var) | D6: 4500 | F6: 0
A7: Ledsagning till aktiviteter | B7: Ledsagning sker genom att en person som barnet/ungdomen litar på kan följa med till aktiviteter, exempelvis mellan lektioner eller till vårdcentral. Sker exempelvis av fritidsledare. | C7: 1 ledsagning (fritidsledare, 0,5 timme) | D7: 350 | F7: 0
A8: Orosanmälan (inklusive involvering i eventuell utredning) | B8: Orosanmälan kan genomföras av samtliga professioner, men ofta är skolsköterskan involverad. | C8: 1 timme (skolsköterska) | D8: 950 | F8: 0 | H8: 1 timme | I8: Det görs enbart en orosanmälan. | J8: 3 timmar | K8: Utöver orosanmälan närvarar personen på ett möte för att återge vad som har hänt.
A9: Samtal skolsköterska | B9: Skolsköterskan kan genom samtal fånga upp problematiken. Utöver detta förekommer det att barn som upplever våld söker vård för relaterade åkommor som inte direkt kopplas till våld, exempelvis magont och oro. Resursåtgång för detta är inte inkluderat här. | C9: 1 samtal (skolsköterska, 1,5 timmar) | D9: 1400 | F9: 0 | H9: 1 samtal | I9: Ett enstaka hälsosamtal genomförs där problematiken fångas upp. | J9: 3–4 samtal | K9: Ibland behövs det flera samtal för att fånga upp problematiken och sedan remittera vidare (till skolläkare, socialtjänst eller BUP).
A10: Stödsamtal | B10: Stödsamtal genomförs oftast av kurator, men mer informellt kan det handla om andra professioner som pratar med barnet/ungdomen för att upprätta ett förtroende. | C10: 1 samtal (kurator, 1 timme) | D10: 850 | F10: 0 | H10: 1 samtal | I10: Ett enstaka stödsamtal genomförs där problematiken fångas upp. | J10: 3–4 samtal | K10: Ibland behövs det flera samtal för att fånga upp problematiken och sedan remittera vidare (till skolläkare, socialtjänst eller BUP).
A11: Socialtjänst
A12: Behandlingshem | B12: Ett behandlingshem handlar här om en plats som fokuserar mycket på att utveckla föräldraförmåga. Är en relativt ovanlig insats avseende våld i nära relationer. Det kan också röra sig om HVB-hem för personer som utsatts för våld i familjen. insatsen/aktiviteten innebär en utbetalning. | C12: 1 månad | D12: 90000 | F12: =D12*E12 -> 0 | H12: 0,5 månad | I12: En granskning görs på behandlingshem utifrån att föräldern har omsorgsplikt för att komma fram till om LVU ska tillämpas eller inte. | J12: 24 månader | K12: Behandlingstiden beror på möjlighet till utslussning. Behandlingshem kan också innefatta en längre behandling med förälder och barn där föräldern ska lära sig att ta hand om sitt barn.
A13: Boendestöd | B13: Boendestöd utgörs av en person som ser till att den utsattas lägenhet är i gott skick, hjälper till att betala räkningar, ser till att vardagen flyter på, tar vid behov kontakt med vården etcetera. Den utsatta kan ha funktionsnedsättning eller psykisk nedsatthet. insatsen/aktiviteten innebär en utbetalning. | C13: 1 månad (10–12 timmar, boendestödjare) | D13: =700*11 -> 7700 | F13: =D13*E13 -> 0 | H13: 6 månader | I13: Boendestöd är vanligen en åtgärd som används under rätt lång tid, men ibland förekommer kortare perioder på sex månader. | J13: 24 månader | K13: Boendestöd upp till två år är inte ovanligt.
A14: Boendestöd (indirekt) | B14: Boendestödet kan vara en kanal för observation utifrån en omsorgsbrist pga. våld. Kan även användas strategiskt för att skapa förtroende och vid misstanke om våld försöka få mer information om det och hålla parterna isär. | C14: 1 besök (1 timme, boendestödjare) | D14: =700 -> 700 | F14: =D14*E14 -> 0 | H14: 1 månad | I14: Kortare serviceinsats. | J14: 3 månader | K14: Längre observation.
A15: Byte av kommun | B15: Behöver den utsatta byta kommun behöver denna transporteras långt bort av två socialsekreterare, och två nya socialsekreterare ska ta vid. Byte av kommun innebär alltid en hög resursåtgång. | C15: 1 byte av kommun (4 socialsekreterare, genomsnitt 10 timmar var) | D15: 33100 | F15: =D15*E15 -> 0
A16: Daglig verksamhet (indirekt) | B16: Daglig verksamhet är en kanal för att notera tecken på våld i nära relation. Kan handla om att använda den strategiskt för att skapa förtroende och vid misstanke om våld försöka få mer information om det och hålla parterna isär. | C16: 1 samtal, 1,5 timme (omvårdnadspersonal/ arbetskonsulent/ biståndshandläggare/kurator) | D16: 1200 | F16: =D16*E16 -> 0 | H16: 1 samtal | I16: Kan användas för att sätta sig in i problematiken och motivera till en långsiktig förändring. Låg resurs avser ett klargörande samtal. En vanlig samtalsserie är fyra - fem samtal. | J16: 10 samtal | K16: Behöver längre tid på sig för att sätta sig in i problematiken.
A17: Ekonomiskt bistånd | B17: Ekonomiskt bistånd handlar om faktisk utbetalning till den utsatta. Kan vara allt från mindre akut stöd i direkt anslutning till våldssituationen, till stadigvarande utbetalning av fullt ekonomiskt bistånd för att ha pengar att leva för. insatsen/aktiviteten innebär en utbetalning | C17: Total utbetalning | D17: [skriv själv in totalsumman här] | E17: [skriv själv in totalsumman här] | H17: 1000 | I17: Det görs enbart en enskild utbetalning av mindre akut stöd, för att hjälpa på kort sikt. Personer kan sen få tillgång till pengar. | J17: 43000 | K17: Tre månaders ekonomiskt bistånd för kvinna utan inkomst med två barn (7 och 11 år) i egen lägenhet.
A18: Familjebehandling | B18: Familjebehandling handlar om familjeinriktat stöd för att bland annat stödja i rutiner och förbättra föräldraskap. Genomförs av exempelvis en familjeterapeut. | C18: 1 samtal (familjeterapeut, 2 timmar) | D18: =1700 -> 1700 | F18: =D18*E18 -> 0 | H18: 4 samtal | I18: Familjebehandling där personerna får kortare familjeinriktat hjälp och stöd. En vanlig samtalsserie är 4-5 samtal. | J18: 20 samtal | K18: Familjebehandling med en mer omfattande problematik och större behov av stöd.
A19: Familjehemsplacering | B19: Barnet/barnen kan vid behov placeras i familjehem. Här handlar det om temporär placering tills dess att situationen för föräldrarna har stabiliserats. Kan i vissa fall även handla om unga vuxna i fall då det handlar om hedersrelaterat våld. Insatsen/aktiviteten innebär en utbetalning. | C19: 1 månad | D19: 54000 | F19: =D19*E19 -> 0 | H19: 3 månader | I19: Föräldrasituationen stabiliseras rätt snabbt så barnet/barnen kan komma tillbaka hem igen. | J19: 15 månader | K19: Det är en komplex situation på hemmaplan och för föräldrarna. Tar lång tid att landa i en tillräckligt trygg situation.
A20: Familjerådgivning | B20: Familjerådgivning utgörs av parterapi där fokus ligger på att lösa relationsproblem. Det kan vara par som vill förbättra sin relation och fortsätta leva tillsammans eller par där en eller båda vill separera. Det kan också handla om hjälp och stöd i föräldraskapet. insatsen/aktiviteten kan innebär en utbetalning. | C20: 1 samtal (socionom, 2 timmar) | D20: 1700 | F20: 0 | H20: 2 samtal | I20: Relationsproblematiken kan redas ut relativt snabbt. | J20: 10 samtal | K20: Det finns en stor oenighet om många saker.
A21: Förhandsbedömning | B21: När ett ärenden kommer in till socialtjänsten görs en förhandsbedömning där det tas ställning till vad som bör ske i ärendet. Utgår vanligen från ett standardiserat formulär utifrån riskbedömning, tidigare kontakter med socialtjänsten etcetera. | C21: 1 timme (socialsekreterare) | D21: 850 | F21: 0 | H21: 3 timmar | I21: Förhandsbedömningen innefattar ett kort akut ärende av enklare slag. | J21: 6 timmar | K21: Förhandsbedömningen kräver en del skrivbordsutredning samt avstämningar med andra enheter och myndigheter.
A22: Genomgång av säkerhet | B22: Denna säkerhetsgenomgång innefattar bland annat skalskydd för lägenheten, åtgärdslista vid kontaktförsök, hur lägenhet ska lämnas och hur kvinnan ska agera när hon går på stan. | C22: 1 säkerhetsgenomgång (behandlingssekreterare eller kurator, 1,5 timmar) | D22: 1300 | F22: 0
A23: Gruppsamtal | B23: Samtalsstöd i grupp till utsatta, ofta sex till åtta deltagare per grupp. Syftar till att ge stöd på olika sätt. | C23: 1 samtal (kurator/ behandlingssekreterare, 2 timmar) | D23: =850*2 -> 1700 | F23: 0
A24: Gruppsamtal (för förövaren) | B24: Samtalsstöd i grupp till förövare, ofta från sex till åtta deltagare. | C24: 1 samtal (2 socialsekreterare, 1,5 timmar var) | D24: =2500 -> 2500 | F24: 0 | H24: 26 veckor | I24: Den kortaste tiden för dessa samtal är en gång i veckan i ett halvår. | J24: 76 veckor | K24: Den längsta tiden som det går att vara inkluderad i dessa gruppsamtal.
A25: Handläggning ekonomiskt bistånd | B25: En ansökan om ekonomiskt bistånd kräver handläggning av en socialsekreterare, vilket även innefattar beslut om godkännande eller avslag. | C25: 1 timme (socialsekreterare) | D25: 850 | F25: 0 | H25: 2 timmar | I25: Handläggningen gäller enbart ett ärende av relativt enkelt slag där i princip all information finns tillgänglig. | J25: 12 timmar | K25: Innefattar en längre inledande handläggning samt tre efterföljande handläggningar av nya ansökningar från individen.
A26: Hemtjänst (indirekt) | B26: Hemtjänsten är en kanal för att notera tecken på våld i nära relation. Kan handla om att använda det strategiskt för att skapa förtroende och vid misstanke om våld försöka få mer information om det och hålla parterna isär. | C26: 1 timme (hemtjänstvårdare) | D26: 700 | F26: 0 | H26: 2 timmar | I26: Sätter sig in i problematiken, motiverar till en långsiktig förändring | J26: 12 timmar | K26: Behöver längre tid på sig.
A27: Hjälp med ny bostad (ej skyddat boende) | B27: Personal på skyddat boende hjälper den utsatta att registrera sig på alla bostadsbolag och bevaka möjligheter. När den utsatta får ett boende behövs en träff med hyresvärden, en kartläggning för att fastställa om det är en lämplig bostad att flytta till, samt hjälp med flytt. | C27: 1 bostadsärende (kurator, socionom eller liknande, 10 timmar) | D27: 8300 | F27: 0
A28: Kontaktperson | B28: En kontaktpersonen fungerar som en vän och medmänniska till en ungdom eller vuxen, exempelvis när en individ kommer ny till orten. Genom regelbundna träffar byggs en relation och kontaktpersonen fungerar som en stödperson. Det handlar inte om kontaktperson på skyddat boende. insatsen/aktiviteten innebär en utbetalning. | C28: 1 månad (baserad på 3 kontakter per vecka) | D28: 1200 | F28: 0 | H28: 3 månader | I28: En kontakt som innebär inslussning i aktiviteter av olika slag. Ungdomen blir sedan "självgående". | J28: 24 månader | K28: Ungdomen behöver mycket eget stöd för att klara av att vara tillsammans med andra. Kombinerat individuellt stöd och "utslussning" i samhället.
A29: Ledsagning till aktiviteter | B29: Ledsagning innebär att en person följer med den utsatta till olika myndigheter etcetera. Det är behandlingssekreterare på skyddat boende som genomför detta. | C29: 1 ledsagning (behandlingssekreterare, 1,5 timmar) | D29: 1200 | F29: 0 | H29: 2 ledsagningar | I29: Ledsagning till enbart två myndigheter då det inte finns så mycket som behöver åtgärd. | J29: 8 ledsagningar | K29: Ledsagning till åtta myndigheter då det finns ett stort behov av att lösa en mängd olika myndighetsfrågor utifrån den uppkomna situationen.
A30: Orosanmälan | B30: När en orosanmälan kommer in ska den tas emot och skyndsamt hanteras (innefattar ej eventuell utredning). | C30: 1 orosanmälan (handläggare, 0,5 timmar) | D30: 400 | F30: 0
A31: Praktiskt stöd i akut situation | B31: Detta praktiska stöd handlar om att få kvinnan i säkerhet. Kan innefatta hjälp att hämta personliga tillhörigheter, hämta på förskolan, samt andra akuta åtgärder. | C31: 1 timme (socialsekreterare) | D31: 850 | F31: 0 | H31: 4 timmar | I31: Innefattar en kort kartläggning, ordna plats på skyddat boende samt hämta personliga saker. Stöter inte på några större utmaningar i detta. | J31: 72 timmar | K31: Rör hedersrelaterat våld, och kräver två socialsekreterare på grund av hotnivån. De behöver hämta barnen samt ta kvinna och barn till skyddat boende i annan kommun (inklusive övernattning).
A32: Riskbedömning | B32: En riskdömningen sker i anslutning till en utredning för att bedöma graden av risk för den utsatta. Görs av socialsekreterare. | C32: 1 timme (socialsekreterare) | D32: 850 | F32: 0 | H32: 2 timmar | I32: En "vanlig" riskbedömning som genomförs utan några större hinder. | J32: 3 timmar | K32: Riskbedömning gällande hedersrelaterad problematik.
A33: Rådgivande/stödjande samtal | B33: Detta innefattar enskilda samtal med den utsatta för att ge denna stöd i situationen. | C33: 1 samtal (kurator/ behandlingssekreterare, 2 timmar) | D33: 1700 | F33: 0 | H33: 1 samtal | I33: Den utsatta har gott självförtroende och har ett stort nätverk, så samtalet handlar om klargöranden kring vad socialtjänsten kan erbjuda samt konkreta råd. | J33: 20-25 samtal | K33: Det behövs både praktiskt stöd och samtalsstöd, då personens situation är väldigt utsatt. Det behövs även stöd vid rättegång etcetera.
A34: Samarbetssamtal | B34: Samarbetssamtal syftar till att få två föräldrar att samarbeta bättre. Har koppling till vårdnadstvist i någon form, men inte nödvändigtvis i domstol. Är ofta olämpligt att föräldrarna träffas för dessa samtal om det finns en våldsproblematik. Då kan samtal med föräldrarna ske var för sig. | C34: 1 samtal (socialsekreterare, 2,5 timmar) | D34: 2100 | F34: 0 | H34: 3 samtal | I34: Inledande individuella samtal + gemensamt samtal. Hittar en överenskommelse av något slag rätt snabbt. | J34: 10 samtal | K34: Inledande individuella samtal + många gemensamma samtal. Står långt ifrån varandra och har svårt att hitta vägar mot samarbete.
A35: Skyddat boende | B35: Boende där den utsatta kan vara under trygga och skyddade omständigheter. Dessa har olika innehåll och säkerhetsgrad, allt från grundläggande boende, till väldigt hög säkerhet. insatsen/aktiviteten kan innebära en utbetalning. | C35: 1 dygn (medelhög säkerhetsgrad) | D35: 3000 | F35: 0 | H35: 1 dygn | I35: Krävs bara en högst temporär lösning, då det därefter finns annan lite mer långvarig bostadslösning på annat håll. | J35: 150 dygn (5 månader) | K35: Boendesituationen i kommunen är väldigt svår så det tar relativt lång tid att hitta en annan, mer långvarig lösning.
A36: Stödjande samtal (för förövaren) | B36: Enskilda stödjande samtal med förövaren i syfte att hjälpa och ge underlag för utveckling. Sker av socialsekreterare. | C36: 1 samtal (socialsekreterare, 2 timmar) | D36: 1700 | F36: 0 | H36: 10 samtal | I36: Innefattar en kartläggning om fyra tillfällen och efter det sex samtal som är mer direkt stödjande. Är inte en alltför komplicerad problembild. | J36: 50–60 samtal | K36: Behövs omfattande stöd för att reda ut många olika aspekter. Träffas en gång per vecka under första året och sedan en gång i månaden i sex månader.
A37: Tolk | B37: I de fall den utsatta eller förövaren inte har tillräckligt god språkkunskaper i de språk som kommunarbetare talar används tolk. insatsen/aktiviteten innebär vanligen en utbetalning. | C37: 1 timme (tolk) | D37: 550 | F37: 0 | H37: 1 timme | J37: 12 timmar | K37: Exempelvis tolk för våldsutsatt som bor på skyddat boende 3 mån, samtal 1 gång per vecka.
A38: Umgängesstöd | B38: Umgängesstöd kan vara aktuellt när det finns våldsutsatta barn med i bilden. Våldsutövaren får inte träffa barnet själv, utan måste göra det tillsammans med en socialsekreterare. | C38: 1 timme (socialsekreterare) | D38: 850 | F38: 0 | H38: 1 träff | I38: Det blir tydligt att föräldern inte är intresserad av kontakt med barnet under dessa omständigheter. | J38: 25 träffar | K38: Umgängesstöd ska omprövas/normaliseras efter ett år. Normal frekvens är träffar varannan vecka.
A39: Utredning barn som bevittnat/upplevt våld | B39: Utredning ska inledas när ett barn misstänks ha blivit utsatt för våld eller bevittnat våld av en närstående. Ska ge beslutsunderlag för lämplig väg framåt, vilket kan innebära ett tvångsomhändertagande av barnet/ungdomen. Genomförs av socialsekreterare. | C39: 1 timme (socialsekreterare) | D39: 850 | F39: 0 | H39: 10 timmar | I39: Samtal med föräldrar omfattande 2 timmar/person samt kringkontakter. | J39: 160- 200 timmar | K39: Ska vara gjord på 4 månader à 10h /vecka. Innefattar tvångsomhändertagande av barn/ungdom.
A40: Utredning våldsutsatt vuxen | B40: Utredning som utgår från ett antal konkreta frågor gällande bland annat individens sociala liv, hälsa och vad individen blivit utsatt för. Genomförs av socialsekreterare. | C40: 1 samtal (socialsekreterare, 2,5 timmar) | D40: 2100 | F40: 0 | H40: 3 samtal | I40: Den utsatta lämnar klara och tydliga svar och de två förstår varandra från början. | J40: 7 samtal | K40: Den utsatta har en komplex problembild och psykisk ohälsa. Finns även många praktiska saker som behöver redas ut.
A41: Utredning vårdnad av barn | B41: Vid en separation kan en utredning om vårdnad bli aktuell. En sådan innefattar bland annat samtal med respektive förälder, barnet/barnen, yrkespersoner i barnets närhet samt hembesök. Genomförs av /familjerättssekreterare/socialsekreterare i syfte att skapa beslutsunderlag i vårdnadsfråga. | C41: 1 timme (socialsekreterare) | D41: 850 | F41: 0 | H41: 20 timmar | I41: 2 samtal per person utförs av två socialsekreterare. Samtalet omfattar 1 timme. Hembesök 2 timmar samt dokumentation 4 timmar. | J41: 40 timmar | K41: Behov av dubbelt så många samtal som i tidigare exempel. 3 hembesök respektive förälder, dokumentation, samverkan andra myndigheter.
A42: Utredningshem | B42: En eller båda föräldrar är placerade med barnet för att utreda föräldrarnas omsorgsförmåga och barnets behov. Kan handla om att föräldrarna är där halva tiden var. Här inkluderas enbart själva utredningstiden. Utredningshem används ibland också som skyddat boende. insatsen/aktiviteten innebär en utbetalning. | C42: 2 månader | D42: 284000 | F42: 0
A43: KOMMUN OCH LANDSTING/REGION
A44: Ungdomsmottagning
A45: Kartläggande samtal | B45: När individen (ca 13-23 år) kommer till ungdomsmottagningen görs en kartläggning av vad anledningen till uppsökandet är. Utifrån det beslutas om det sker en remittering eller stödsamtal inom ungdomsmottagningen. | C45: 1 samtal (kurator, 1 timme) | D45: =850 -> 850 | F45: =D45*E45 -> 0 | H45: 1 samtal | J45: 3 samtal
A46: Stödsamtal enskilt | B46: Innefattar enskilda stödsamtal mellan individen (våldsutsatt eller våldsutförare) och kurator eller barnmorska. Kan exempelvis beröra hedersrelaterat våld, partnervåld i unga år eller hot om internet-spridning av bilder. | C46: 1 samtal (kurator/ barnmorska, 1 timme) | D46: =850 -> 850 | F46: =D46*E46 -> 0 | H46: 2 samtal | J46: 15 samtal
A47: Stödsamtal grupp | B47: Om det finns ett flertal individer inom den enskilda ungdomsmottagningen kan en samtalsgrupp skapas där stödsamtal sker i grupp snarare än enskilt. Ofta sex till åtta deltagare. | C47: 1 samtal (2 kuratorer, 2 timmar var) | D47: =850*2*2 -> 3400 | F47: =D47*E47 -> 0 | H47: 8 samtal | J47: 16 samtal
A48: Gynekologisk undersökning | B48: Efter samtal med kurator kan individen genomgå en gynekologisk undersökning vid ungdomsmottagningen, exempelvis vid sexuellt våld eller könsstympning. | C48: 1 undersökning (gyn-läkare) | D48: 2000 | F48: =D48*E48 -> 0
A49: LANDSTING/REGION
A50: Specialiserad vård
A51: Akutmottagning psyk | B51: Akutmottagningen genomför bedömningar av det psykiatriska akuttillstånd, vårdbehov samt eventuella behov av inläggningar på vårdavdelning. Utifrån våld i nära relationer är akutmottagningen aktuell för både den utsatta och förövaren. | C51: 1 vårdkontakt | D51: 3800 | F51: =D51*E51 -> 0
A52: Akutmottagning somatisk | B52: Akutmottagningen gör bedömningar av de sökande utifrån ett somatiskt (fysiskt) perspektiv. För våld i nära relationer handlar det huvudsakligen om att den utsatta behöver söka akut vård på grund av fysisk skada. | C52: 1 vårdkontakt | D52: 2600 | F52: 0
A53: Ambulans | B53: Ambulansen utgörs av ett sjuktransportmedel (som bil, båt eller helikopter) försedd med medicinsk utrustning och bemannade med ambulanssjukvårdare och/eller sjuksköterska med vidareutbildning. | C53: 1 resa (tur och retur) | D53: 3300 | F53: =D53*E53 -> 0
A54: Specialiserad psykiatrisk dagsjukvård | B54: Dagsjukvården vänder sig till personer med psykiska problem som är för svåra för primärvården att hantera, men inte så omfattande att det krävs slutenvård. Avseende våld i nära relationer kan detta vara aktuellt både för den utsatta och förövaren. | C54: 1 vårdkontakt | D54: 4300 | F54: 0 | H54: 6 vårdkontakter | J54: Långvarig behandlingsperiod | K54: Patienterna hamnar i en sits där de inte hör hemma någonstans.
A55: Specialiserad psykiatrisk mottagningsverksamhet | B55: Specialiserad psykiatrisk vård omfattar områden som allmänpsykiatri, barn- och ungdomspsykiatri och beroendevård. Mottagningsverksamheten innefattar möten med specialister för konsultation. | C55: 1 vårdkontakt | D55: 4800 | F55: 0 | H55: 4 vårdkontakter | J55: Långvarig behandlingsperiod
A56: Specialiserad psykiatrisk slutenvård | B56: Slutenvården innefattar ett arbete under längre tid med personer med psykiska problem av olika slag. Patienterna är inlagda på en avdelning för behandling. För våld i nära relationer kan detta gälla både den utsatta och förövaren. Rättspsykiatrisk vård hanteras som en egen post längre ner i listan. | C56: 1 vårddygn (genomsnitt för psykiatrisk slutenvård) | D56: 8000 | F56: 0
A57: Specialiserad psykiatrisk slutenvård för barn och ungdomar (BUP) | B57: Slutenvården innefattar ett arbete under längre tid med personer med psykiska problem av olika slag. Patienterna är inlagda på en avdelning för behandling. För våld i nära relationer kan detta gälla både den utsatta och förövaren. | C57: 1 vårddygn (genomsnitt för psykiatrisk slutenvård inom BUP) | D57: 20500 | F57: 0
A58: Specialiserad somatisk slutenvård | B58: Slutenvården innefattar mer omfattande medicinsk, kirurgisk och geriatrisk vård där patienten spenderar nätter inom vården. För våld i nära relationer är det kirurgisk vård som huvudsakligen är aktuellt. | C58: 1 vårddygn (genomsnitt för somatisk slutenvård) | D58: 10200 | F58: 0
A59: Specialiserad somatisk dagsjukvård | B59: Denna dagsjukvård innefattar dagkirurgi, dagmedicin och övrig dagsjukvård (som exempelvis medicinsk dagrehabilitering). För våld i nära relationer är det dagkirurgi som huvudsakligen är aktuellt. | C59: 1 vårdkontakt | D59: 5900 | F59: 0 | H59: 1 vårdkontakt | J59: 5 vårdkontakt | K59: Mer omfattande vårdbehov beroende på graden av våld.
A60: Specialiserad somatisk mottagningsverksamhet | B60: Specialiserad somatisk vård innefattar hälso- och sjukvård av fysiskt relaterade åkommor av mer specialiserat slag än inom primärvård. Är uppdelad i bland annat medicinsk och kirurgisk vård. Besök hos mottagningsverksamheten kopplat till våld i nära relationer handlar om att exempelvis träffa kirurg för konsultation. | C60: 1 vårdkontakt | D60: 3400 | F60: 0 | H60: 1 vårdkontakt | J60: 5 vårdkontakt | K60: Mer omfattande vårdbehov beroende på graden av våld.
A61: Primärvård
A62: Allmänläkarvård | B62: Allmänläkarvård (inklusive jour) innefattar här mottagningsverksamhet på vårdcentral (eller hembesök) av läkare som är specialist i allmänmedicin. | C62: 1 vårdkontakt | D62: 1500 | F62: =D62*E62 -> 0 | H62: 1 besök + 1 telefonsamtal | I62: Våldet upptäcks relativt snabbt och patienten slussas vidare, exempelvis till kurator eller socialtjänst. | J62: 10 besök | K62: Patienten kommer in på upprepade besök innan någon frågar om våld i nära relationer.
A63: Mödrahälsovård (inklusive gynekologisk undersökning) | B63: I mödrahälsovård ingår gynekologiska undersökningar, mammografier, för- och eftervård av gravida kvinnor, samt preventivmedelsrådgivning i anslutning till graviditet. Basal mödrahälsovård som bedrivs på sjukhus redovisas också här. | C63: 1 vårdkontakt | D63: 2000 | F63: =D63*E63 -> 0 | H63: 2 vårdkontakter | I63: Barnmorska träffar ett par och förstår att det finns ett problem. Görs ett extra besök hos barnmorskan och kontakt hos mödrahälsovårdspsykolog. | J63: 5 vårdkontakter | K63: Förutom första träff och extrabesök träffar kvinnan en relaterad psykolog vid några tillfällen. Anknytningen inte är god och mamman deprimerad.
A64: Sjuksköterskevård | B64: Sjuksköterskevård (inklusive jour) handlar här om mottagnings- och hembesök av sjuksköterska. | C64: 1 vårdkontakt | D64: 500 | F64: =D64*E64 -> 0 | H64: 2-3 vårdkontakter | I64: Våldet upptäcks relativt snabbt och patienten slussas vidare, exempelvis till kurator eller socialtjänst. | J64: > 3 vårdkontakter | K64: Mer omfattande vårdbehov beroende på graden av våld.
A65: Tandvård
A66: Allmäntandvård | B66: Allmäntandvården innefattar all tandvård som bedrivs på allmänna tandvårdskliniker (folktandvården och motsvarande). | C66: 1 vårdkontakt | D66: 2400 | F66: =D66*E66 -> 0 | H66: 1-2 vårdkontakter | J66: >2 vårdkontakter
A67: Specialisttandvård | B67: Specialisttandvård får den som har särskilda behov. Sker på remiss från någon form av vårdgivare. Innefattar exempelvis käkkirurgi, avancerad röntgen, tandersättning och tandreglering. | C67: 1 vårdkontakt | D67: 6500 | F67: =D67*E67 -> 0 | H67: 1-2 vårdkontakter | J67: >2 vårdkontakter
A68: Rättspsykiatrisk avdelning/klinik
A69: Rättspsykiatrisk vård | B69: I de fall en förövare har begått ett våldsbrott under påverkan av allvarlig psykisk störning kan denna inte dömas till fängelse, utan istället till rättspsykiatrisk vård. | C69: 1 dygn | D69: 7000 | F69: =D69*E69 -> 0
A70: Oberoende av verksamhet
A71: Läkemedel | B71: Läkemedel handlar här om alla former av medicin. | C71: 1 recept | D71: 200 | F71: =D71*E71 -> 0
A72: Tolk | B72: En tolk används när personen i fråga inte har tillräckliga språkkunskaper och det därför behövs översättning. Insatsen/aktiviteten innebär vanligen en utbetalning. | C72: 1 timme | D72: 550 | F72: =D72*E72 -> 0
A73: IDEELLA ORGANISATIONER
A74: Kvinnojour
A75: Skyddat boende | B75: Skyddat boende som Kvinnojouren själv erbjuder. Den utsatta får tillgång till boendet via socialtjänsten. I de flesta fall ingår skydd, stöd (samtalsstöd) och praktisk hjälp. De flesta jourer erbjuder också särskild barnverksamhet till barn som bor hos dem. | C75: 1 dygn, 1 person | D75: 1600 | F75: =D75*E75 -> 0 | H75: 3 dygn | I75: Den utsatta behöver en kortvarig fristad för att sedan ta sig till ett annat mer långvarigt boende på egen hand. | J75: 12 månader | K75: Den utsatta har en komplex problembild och behöver omfattande stöd på olika sätt.
A76: Stödjande aktivitet | B76: Med stödjande aktiviteter avses här aktiviteter riktade till individer som inte finns i kvinnojourens skyddade boende. Exempelvis agera medföljare till myndighet, hjälp till med nytt boende, enskilda-/gruppsamtal, umgängesstöd och barnaktiviteter. Dessa aktiviteter är även tillgängliga för de som finns i skyddat boende, men kostnaden för dessa ingår i föregående post. | C76: 1 timme (olika professioner, tex socionom, beteendevetare, kurator) | D76: 800 | F76: =D76*E76 -> 0 | H76: 4 timmar | I76: Den utsatta behöver framförallt något eller några stödjande samtal och råd avseende tillvägagångssätt. | J76: 200 timmar (4 timmar per vecka) | K76: Den utsatta bor inte på boendet men har lång och kontinuitet kontakt med kvinnojouren. Handlar bland annat om stödsamtal, upprepade barnaktiviteter, samt stöd vid flera förhör och långa rättsprocesser.
A77: Brottsofferjour
A78: Stöd från brottsofferjour | B78: Brottsofferjouren arbetar för alla brottsoffers rättighet att få det stöd som behövs för att få kraften tillbaka. Det kan handla om stöd vid kontakter med hjälpinstanser som kan ge till exempel psykologisk hjälp, skyddat boende eller ekonomiskt understöd. | C78: 9 timmar (genomsnittlig tidsåtgång för alla typer av brottsoffer) | D78: 4300 | F78: =D78*E78 -> 0
A79: SAMVERKAN MELLAN OLIKA VERKSAMHETER
A80: Samråd | B80: Samråd kan ske mellan olika verksamheter kring en enskild individ. Tex mellan socialtjänst, polis och sjukvård. Även barnahus, barnläkare, kurator, behandlingshem, åklagare och andra aktörer kan vara involverade. | C80: 1 samråd (30min, räknat med 3 aktörer) | D80: =800*3*0.5 -> 1200 | F80: =D80*E80 -> 0 | H80: 2 samråd | I80: 1 planeringssamråd och 1 uppföljning för att tex undersöka behov av läkarundersökning, särskild företrädare eller skyddat boende. | J80: >3 samråd | K80: Trepartssamtal av mer omfattande karaktär.
A81: STAT/RÄTTSVÄSENDE
A82: Polisen
A83: Utredningsverksamhet (inklusive lagföring) | B83: Finns misstanke om brott startas en polisutredning för att samla information om skeendet. | C83: 1 utredning och lagföring (genomsnitt alla typer av brott) | D83: 19300 | F83: =D83*E83 -> 0
A84: Åklagarmyndigheten
A85: Sexualbrott | B85: Vid misstanke om sexualbrott engageras åklagarmyndigheten och en åklagare tillsätts för målet. Åklagaren är den som väcker åtal. | C85: 1 åklagarärende vid brottsmisstanke (genomsnitt för alla typer av brott) | D85: 9200 | F85: =D85*E85 -> 0
A86: Våldsbrott | B86: Vid misstanke om våldsbrott engageras åklagarmyndigheten och en åklagare tillsätts för målet. Åklagaren är den som väcker åtal. | C86: 1 åklagarärende vid brottsmisstanke (genomsnitt för alla typer av brott) | D86: 5000 | F86: =D86*E86 -> 0
A87: Domstol
A88: Brottsmål - hovrätt | B88: Hovrätten tar upp ärenden i fall då tingsrättens dom har överklagats. Domstolen leder processen framåt, från start till slutligt beslut i målet. | C88: 1 genomförande av brottsmål (genomsnitt för alla typer av brottsmål) | D88: 51800 | F88: =D88*E88 -> 0
A89: Brottsmål - tingsrätt | B89: När ett brottsmål kommer upp i tingsrätten är det domstolen som leder processen framåt, från start till slutligt beslut i målet. Tingsrätten är första rättsliga insats i brottsmål inom domstolsväsendet. | C89: 1 genomförande av brottsmål (genomsnitt för alla typer av brottsmål) | D89: 16300 | F89: =D89*E89 -> 0
A90: Tvistemål - hovrätt | B90: Hovrätten tar upp ärenden i fall då tingsrättens dom har överklagats. Domstolen leder processen framåt, från start till slutligt beslut i målet. | C90: 1 genomförande av tvistemål (genomsnitt för alla typer av tvistemål) | D90: 43400 | F90: =D90*E90 -> 0
A91: Tvistemål - tingsrätt | B91: När ett tvistemål kommer upp i tingsrätten är det domstolen som leder processen framåt, från start till slutligt beslut i målet. Tingsrätten är första rättsliga insats i tvistemål inom domstolsväsendet. | C91: 1 genomförande av tvistemål (genomsnitt för alla typer av tvistemål) | D91: 18400 | F91: =D91*E91 -> 0
A92: Kriminalvård
A93: Anstalt | B93: När en förövare dömts till fängelse placeras denna på angiven anstalt för att avtjäna sitt straff. | C93: 1 dygn | D93: 3400 | F93: =D93*E93 -> 0
A94: Frivård | B94: Frivården övervakar klienter som är villkorligt frigivna, har skyddstillsyn, samhällstjänst eller övervakas med hjälp av fotboja. | C94: 1 dygn | D94: 300 | F94: =D94*E94 -> 0
A95: Häkte | B95: När en förövare anhållits och begärts häktad av åklagaren placeras förövaren i häktet. | C95: 1 dygn | D95: 3600 | F95: =D95*E95 -> 0
A96: Advokatbyrå
A97: Domstolsprocess målsägarbiträde (inklusive stöd under förundersökning) | B97: En brottsmisstänkt person har rätt till en försvarsadvokat, vilket vanligen är en advokat eller jurist anställd vid advokatbyrå. Det handlar om att stödja sin klient under förundersökningen och den eventuella domstolsprocessen. | C97: 1 genomförande av domstolsmål (genomsnitt alla typer av mål) | D97: 13200 | F97: =D97*E97 -> 0
A98: Domstolsprocess försvarsadvokat (inklusive stöd under förundersökning) | B98: En våldsutsatt har rätt till ett målsägarbiträde vilket vanligen är en advokat eller jurist anställd vid advokatbyrå. Det handlar om att stödja sin klient under förundersökningen och den eventuella domstolsprocessen. | C98: 1 genomförande av domstolsmål (genomsnitt alla typer av mål) | D98: 18900 | F98: =D98*E98 -> 0
A99: Rättsmedicinalverket
A100: § 7-undersökning | B100: Oftast föregås en rättspsykiatrisk undersökning av en mindre så kallad § 7- undersökning. Det är en timslång utvärdering som kan resultera i att utföraren (Rättsmedicinalverket) rekommenderar domstolen att gå̊ vidare och begära en rättspsykiatrisk undersökning. | C100: 1 undersökning (genomsnitt för alla undersökningar) | D100: 7100 | F100: =D100*E100 -> 0
A101: Kroppsundersökning | B101: Vid brottsmisstanke kan en kroppsundersökning ske av brottsoffer och gärningsman. I detta ingår även att göra ett sammantaget utlåtande utifrån undersökningen. | C101: 1 kroppsundersökning (genomsnitt för alla undersökningar) | D101: 4800 | F101: =D101*E101 -> 0
A102: Rättspsykiatrisk undersökning av häktad | B102: En rättspsykiatrisk undersökning av en häktad person tar vanligen fyra veckor. Under perioden undersöks den misstänkte av ett team bestående av rättspsykiater, psykolog, forensisk socialutredare och omvårdnadspersonal för att tillsammans bilda sig en uppfattning om personens psykiska status vid brottstillfället. | C102: 1 undersökning (genomsnitt för alla undersökningar) | D102: 479000 | F102: =D102*E102 -> 0
A103: Rättspsykiatrisk undersökning av person på fri fot | B103: En rättspsykiatrisk undersökning för person på fri fot får max ta 6 veckor. Den genomförs ungefär på samma sätt som den rättspsykiatriska undersökningen av en häktad person. | C103: 1 undersökning (genomsnitt för alla undersökningar) | D103: 71900 | F103: =D103*E103 -> 0
A104: Yttrande | B104: Rättsmedicin lämnar ett yttrande i ett fall där de inte gjort några egna kroppsundersökningar, utan enbart utgått ifrån journal- och polisuppgifter. | C104: 1 yttrande (genomsnitt för alla typer av yttranden) | D104: 3000 | F104: =D104*E104 -> 0
A105: STAT
A106: Försäkringskassan
A107: Aktivitetsersättning | B107: Aktivitetsersättning beviljas de som är i åldrarna 19–29 år och som av medicinska skäl har fått sin arbetsförmåga nedsatt med minst en fjärdedel under minst ett år. Ersättningen är alltid tidsbegränsad. Insatsen/aktiviteten innebär en utbetalning. | C107: 1 månad sjukersättning (medelbelopp för all sjukersättning) | D107: 7900 | F107: =D107*E107 -> 0
A108: Aktivitetsersättning handläggning | B108: Vid ansökan om aktivitetsersättning behöver ärendet handläggas av Försäkringskassan. | C108: 1 beslut om ersättning | D108: 11600 | F108: 0
A109: Rehabiliteringspenning | B109: Rehabiliteringspenning kan betalas ut till den som har tillfälligt nedsatt arbetsförmåga på̊ grund av sjukdom eller skada och deltar i arbetslivsinriktad rehabilitering. Insatsen/aktiviteten innebär en utbetalning. | C109: 1 dag rehabiliteringspenning (medelbelopp för all rehabiliteringspenning) | D109: 500 | F109: 0
A110: Rehabiliteringspenning handläggning | B110: Vid ansökan om rehabiliteringspenning behöver ärendet handläggas av Försäkringskassan. | C110: 1 genomförd utbetalning | D110: 500 | F110: 0
A111: Sjukersättning | B111: Sjukersättning beviljas de som är i åldrarna 30–64 år och som har en stadigvarande nedsatt arbetsförmåga, det vill säga för all överskådlig framtid. Insatsen/aktiviteten innebär en utbetalning. | C111: 1 månad sjukersättning (medelbelopp för all sjukpenning) | D111: 9300 | F111: 0
A112: Sjukersättning handläggning | B112: Vid ansökan om sjukersättning behöver ärendet handläggas av Försäkringskassan. | C112: 1 beslut om ersättning | D112: 9400 | F112: 0
A113: Sjukpenning | B113: Försäkringskassan kan betala ut sjukpenning till den som har tillfälligt nedsatt arbetsförmåga på̊ grund av sjukdom eller skada. Detta sker då från dag 15 och framåt. Insatsen/aktiviteten innebär en utbetalning. | C113: 1 dag sjukpenning (medelbelopp för all sjukpenning) | D113: 600 | F113: 0
A114: Sjukpenning handläggning | B114: Vid ansökan om sjukpenning behöver ärendet som helhet handläggas av Försäkringskassan. | C114: 1 avslutat sjukfall | D114: 6800 | F114: 0
A115: Skatteverket
A116: Sekretessmarkering och kvarskrivning | B116: En sekretessmarkering gör det svårare för andra att ta del av personens personuppgifter i folkbokföringsregistret. Kallas i dagligt tal för skyddad identitet. Kvarskrivning fungerar som ett adresskydd när en person har flyttat till annan, hemlig adress. Den nya adressen framgår då inte. | C116: 1 ärende (medelhög resursåtgång) | D116: 3800 | F116: =D116*E116 -> 0
A117: Kronofogdemyndigheten
A118: Avskrivna skulder vid skuldsanering | B118: När skuldsanering genomförs skrivs en stor del av de befintliga skulderna av, vilket gör att ekonomiska fodringar aldrig betalas tillbaka. | C118: 1 skuldsanering (genomsnittligt avskrivet skuldbelopp för all skuldsanering) | D118: 570000 | F118: =D118*E118 -> 0
A119: Handläggning skuldsanering | B119: I fall där skuldsanering begärs sker en handläggning av ärendet för att fatta beslut om saneringen ska godkännas eller ej. | C119: 1 avslutat ärende | D119: 14200 | F119: =D119*E119 -> 0
A120: Brottsoffermyndigheten
A121: Brottsskadeersättning för våldtäkt | B121: Om en dömd gärningsperson inte kan betala skadeståndet och den utsatta inte har någon försäkring som täcker skadan, kan den utsatta i vissa fall få ersättning från staten. Sådan ersättning kallas brottsskadeersättning. Insatsen/aktiviteten innebär en utbetalning. | C121: 1 utbetalning av ersättning | D121: [skriv själv in summan här] | E121: [skriv själv in summan här] | H121: 100000 | I121: Brottet utgörs av våldtäkt i bostaden. | J121: 250000 | K121: Brottet utgörs av upprepade våldtäkter under flera års tid.
A122: Brottsskadeersättning våld i nära relation | B122: Om en dömd gärningsperson inte kan betala skadeståndet och den utsatta inte har någon försäkring som täcker skadan, kan den utsatta i vissa fall få ersättning från staten. Sådan ersättning kallas brottsskadeersättning. Insatsen/aktiviteten innebär en utbetalning. | C122: 1 utbetalning av ersättning | D122: [skriv själv in summan här] | E122: [skriv själv in summan här] | H122: 10000 | I122: Handlar om misshandel vid ett eller enstaka tillfällen med örfilar, knytnävsslag etcetera. | J122: 100000 | K122: Mycket grovt våld vid ett eller flera tillfällen med tydliga kränkningsinslag eller uppsåt att döda.
A123: PRIVAT, OFFENTLIG OCH IDEELL SEKTOR
A124: Arbetsgivare
A125: Sjukskrivning (dag 1-14) | B125: När en arbetstagare sjukanmäler sig betalar arbetsgivaren lön (sjuklön) till arbetstagaren från dag 2 till och med dag 14. Ofta krävs ett läkarintyg efter ungefär halva denna period för fortsatt utbetalning av sjuklön. Från dag 15 är det Försäkringskassan som betalar ut eventuell ersättning vid sjukdom. | C125: 1 sjuklönedag (inkl. sociala avgifter, utifrån medianlön) | D125: 1800 | F125: =D125*E125 -> 0
A126: Företagshälsovård | B126: Tillhandahåller arbetsgivaren företagshälsovård till sina anställda kan sådan komma att användas för att stödja utifrån våld i nära relation. I det flesta fall sker dock sådant stöd via det offentliga systemet. Insatsen/aktiviteten innebär en utbetalning. | C126: 1 avslutat ärende (utifrån icke fysiskt belastande yrken) | D126: 10000 | F126: =D126*E126 -> 0
A127: Vikarie | B127: När en arbetstagare sjukanmäler sig behöver den ofta ersättas av en vikarie, vilket innebär extra kostnader för arbetsgivaren. | C127: 1 arbetsdag vikarie (inkl. sociala avgifter, utifrån medianlön) | D127: =1800 -> 1800 | F127: =D127*E127 -> 0
A128: TOTALSUMMA | F128: =SUM(F4:F126) -> 0

Sheet Detaljerad innehållsförteckning (hidden)
B2: Innehållsförteckning
B3: KOMMUN
C4: Skola och förskola
D5: Besök skolläkare
D6: Byte av skola
D7: Elevvårdskonferens
D8: Ledsagning till aktiviteter
D9: Orosanmälan (inklusive involvering i eventuell utredning)
D10: Samtal skolsköterska
D11: Stödsamtal
C12: Socialtjänst
D13: Behandlingshem
D14: Boendestöd
D15: Boendestöd (indirekt)
D16: Byte av kommun
D17: Daglig verksamhet (indirekt)
D18: Ekonomiskt bistånd
D19: Familjebehandling
D20: Familjehemsplacering
D21: Familjerådgivning
D22: Förhandsbedömning
D23: Genomgång av säkerhet
D24: Gruppsamtal
D25: Gruppsamtal (för förövaren)
D26: Handläggning ekonomiskt bistånd
D27: Hemtjänst (indirekt)
D28: Hjälp med ny bostad (ej skyddat boende)
D29: Kontaktperson
D30: Ledsagning till aktiviteter
D31: Orosanmälan
D32: Praktiskt stöd i akut situation
D33: Riskbedömning
D34: Rådgivande/stödjande samtal
D35: Samarbetssamtal
D36: Skyddat boende
D37: Stödjande samtal (för förövaren)
D38: Tolk
D39: Umgängesstöd
D40: Utredning barn som bevittnat/upplevt våld
D41: Utredning våldsutsatt vuxen
D42: Utredning vårdnad av barn
D43: Utredningshem
B44: KOMMUN OCH REGION
C45: Ungdomsmottagning
D46: Kartläggande samtal
D47: Stödsamtal enskilt
D48: Stödsamtal grupp
D49: Gynekologisk undersökning
B50: REGION
C51: Primärvård
D52: Allmänläkarvård
D53: Mödrahälsovård (inklusive gynekologisk undersökning)
D54: Sjuksköterskevård
C55: Specialiserad vård
D56: Akutmottagning psyk
D57: Akutmottagning somatisk
D58: Ambulans
D59: Specialiserad psykiatrisk dagsjukvård
D60: Specialiserad psykiatrisk mottagningsverksamhet
D61: Specialiserad psykiatrisk slutenvård
D62: Specialiserad psykiatrisk slutenvård för barn och ungdomar (BUP)
D63: Specialiserad somatisk slutenvård
D64: Specialiserad somatisk dagsjukvård
D65: Specialiserad somatisk mottagningsverksamhet
C66: Tandvård
D67: Allmäntandvård
D68: Specialisttandvård
C69: Rättspsykiatrisk avdelning/klinik
D70: Rättspsykiatrisk vård
C71: Oberoende av verksamhet
D72: Läkemedel
D73: Tolk
B74: SAMVERKAN MELLAN OLIKA VERKSAMHETER
D75: Samråd
B76: IDEELLA ORGANISATIONER
C77: Kvinnojour
D78: Skyddat boende
D79: Stödjande aktivitet
C80: Brottsofferjour
D81: Stöd från brottsofferjour
B82: STAT
C83: Försäkringskassan
D84: Aktivitetsersättning
D85: Aktivitetsersättning handläggning
D86: Rehabiliteringspenning
D87: Rehabiliteringspenning handläggning
D88: Sjukersättning
D89: Sjukersättning handläggning
D90: Sjukpenning
D91: Sjukpenning handläggning
C92: Skatteverket
D93: Sekretessmarkering och kvarskrivning
C94: Kronofogdemyndigheten
D95: Avskrivna skulder vid skuldsanering
D96: Handläggning skuldsanering
C97: Brottsoffermyndigheten
D98: Brottsskadeersättning för våldtäkt
D99: Brottsskadeersättning våld i nära relation
B100: RÄTTSVÄSENDE
C101: Polisen
D102: Utredningsverksamhet (inklusive lagföring)
C103: Åklagarmyndigheten
D104: Sexualbrott
D105: Våldsbrott
C106: Domstol
D107: Brottsmål - tingsrätt
D108: Brottsmål - hovrätt
D109: Tvistemål - tingsrätt
D110: Tvistemål - hovrätt
C111: Kriminalvård
D112: Anstalt
D113: Frivård
D114: Häkte
C115: Advokatbyrå
D116: Domstolsprocess målsägarbiträde (inklusive stöd under förundersökning)
D117: Domstolsprocess försvarsadvokat (inklusive stöd under förundersökning)
C118: Rättsmedicinalverket
D119: § 7-undersökning
D120: Kroppsundersökning
D121: Rättspsykiatrisk undersökning av häktad
D122: Rättspsykiatrisk undersökning av person på fri fot
D123: Yttrande
B124: PRIVAT, OFFENTLIG OCH IDEELL SEKTOR
C125: Arbetsgivare
D126: Sjukskrivning (dag 1-14)
D127: Företagshälsovård
D128: Vikarie

Sheet Kommun
C2: Kommun
D3: Tryck Tab eller Enter för att hoppa mellan de ifyllbara cellerna (vita).
D4: En sammanställning av allt som fyllts i presenteras längst ner i bladet.
C7: Skola och förskola
D9: Besök skolläkare | H9: Antal timmar: | J9: I vissa fall remitteras barnet/ungdomen till skolläkare för vidare behandling.
D10: Antagen timkostnad
D11: Kostnad: | E11: =1900*1.0846 -> 2060.74
D13: Byte av skola | J13: När barn behöver byta skola är det framför allt rektorn som blir involverad, både på mottagande och avlämnande skola.
D14: Kostnad per skolbyte (2 rektorer,1,5 timmar var) | H14: Antal skolbyten:
D16: Kostnad: | E16: =3700*1.0846 -> 4013.02
D18: Elevvårdskonferens | J18: När problemet uppdagas träffas rektor, skolsköterska och kurator i elevvårdskonferensen för att diskutera hur situationen ska hanteras. Ibland deltar även lärare.
D19: Antagen kostnad per elevvårdskonferens (kurator, skolsköterska, rektor, 1,5 timmar var)
H21: Antal elevvårdskonferenser:
D23: Kostnad: | E23: =4500*1.0846 -> 4880.7
D25: Ledsagning till aktiviteter | J25: Ledsagning sker genom att en person som barnet/ungdomen litar på kan följa med till aktiviteter, exempelvis mellan lektioner eller till vårdcentral. Sker exempelvis av fritidsledare.
D26: Antagen ledsagning (fritidsledare, 0,5 timme)
H27: Antal ledsagningar:
D28: Kostnad: | E28: =350*1.0846 -> 379.61
D30: Orosanmälan (inkl involvering i eventuell utredning) | J30: Orosanmälan kan genomföras av samtliga professioner, men ofta är skolsköterskan involverad.
D32: Antagen kostnad per orosanmälan: 1 timme (skolsköterska)
H34: Antal orosanmälningar:
D35: Kostnad: | E35: =950*1.0846 -> 1030.37
D37: Samtal skolsköterska | J37: Skolsköterskan kan genom samtal fånga upp problematiken. Utöver detta förekommer det att barn som upplever våld söker vård för relaterade åkommor som inte direkt kopplas till våld, exempelvis magont och oro. Resursåtgång för detta är inte inkluderat här.
D38: Antagen kostnad per samtal (skolsköterska, 1,5 timmar)
H40: Antal samtal:
D41: Kostnad: | E41: =1400*1.0846 -> 1518.44
D43: Stödsamtal | J43: Stödsamtal genomförs oftast av kurator, men mer informellt kan det handla om andra professioner som pratar med barnet/ungdomen för att upprätta ett förtroende.
D44: Antagen kostnad per stödsamtal, (kurator, 1 timme)
H46: Antal stödsamtal:
D47: Kostnad: | E47: =850*1.0846 -> 921.91
C50: Socialtjänst
D52: Behandlingshem | J52: Ett behandlingshem handlar här om en plats som fokuserar mycket på att utveckla föräldraförmåga. Är en relativt ovanlig insats avseende våld i nära relationer. Det kan också röra sig om HVB-hem för personer som utsatts för våld i familjen. insatsen/aktiviteten innebär en utbetalning.
D53: Enhet: 1 månad | H53: Antal månad/er:
D54: Kostnad: | E54: =90000*1.0846 -> 97614
D58: Boendestöd | J58: Boendestöd utgörs av en person som ser till att den utsattas lägenhet är i gott skick, hjälper till att betala räkningar, ser till att vardagen flyter på, tar vid behov kontakt med vården etcetera. Den utsatta kan ha funktionsnedsättning eller psykisk nedsatthet. insatsen/aktiviteten innebär en utbetalning.
D59: Enhet: 1 månad (10–12 timmar, boendestödjare)
H60: Antal månad/er:
D61: Kostnad: | E61: =7700*1.0846 -> 8351.42
D63: Boendestöd (indirekt) | J63: Boendestödet kan vara en kanal för observation utifrån en omsorgsbrist pga. våld. Kan även användas strategiskt för att skapa förtroende och vid misstanke om våld försöka få mer information om det och hålla parterna isär.
D64: Enhet: 1 besök (1 timme, boendestödjare)
H65: Antal besök:
D66: Kostnad: | E66: =700*1.0846 -> 759.22
D68: Byte av kommun | J68: Behöver den utsatta byta kommun behöver denna transporteras långt bort av två socialsekreterare, och två nya socialsekreterare ska ta vid. Byte av kommun innebär alltid en hög resursåtgång.
D69: Enhet: 1 byte av kommun (4 socialsekreterare, genomsnitt 10 timmar var)
H71: Antal byten:
D72: Kostnad: | E72: =33100*1.0846 -> 35900.26
D74: Daglig verksamhet (indirekt) | J74: Daglig verksamhet är en kanal för att notera tecken på våld i nära relation. Kan handla om att använda den strategiskt för att skapa förtroende och vid misstanke om våld försöka få mer information om det och hålla parterna isär.
D75: Enhet: 1 samtal, 1,5 timme (omvårdnadspersonal/ arbetskonsulent/ biståndshandläggare/ kurator)
H78: Antal samtal:
D79: Kostnad: | E79: =1200*1.0846 -> 1301.52
D81: Ekonomiskt bistånd | J81: Ekonomiskt bistånd handlar om faktisk utbetalning till den utsatta. Kan vara allt från mindre akut stöd i direkt anslutning till våldssituationen, till stadigvarande utbetalning av fullt ekonomiskt bistånd för att ha pengar att leva för. insatsen/aktiviteten innebär en utbetalning
D82: Enhet: Total utbetalning | H82: Totalsumma:
D83: Kostnad:
D87: Familjebehandling | J87: Familjebehandling handlar om familjeinriktat stöd för att bland annat stödja i rutiner och förbättra föräldraskap. Genomförs av exempelvis en familjeterapeut.
D88: Enhet: 1 samtal (familjeterapeut, 2 timmar)
H89: Antal samtal:
D90: Kostnad: | E90: =1700*1.0846 -> 1843.82
D92: Familjehemsplacering | J92: Barnet/barnen kan vid behov placeras i familjehem. Här handlar det om temporär placering tills dess att situationen för föräldrarna har stabiliserats. Kan i vissa fall även handla om unga vuxna i fall då det handlar om hedersrelaterat våld. Insatsen/aktiviteten innebär en utbetalning.
D93: Enhet: 1 månad | H93: Antal månad/er:
D94: Kostnad: | E94: =54000*1.0846 -> 58568.4
D98: Familjerådgivning | J98: Familjerådgivning utgörs av parterapi där fokus ligger på att lösa relationsproblem. Det kan vara par som vill förbättra sin relation och fortsätta leva tillsammans eller par där en eller båda vill separera. Det kan också handla om hjälp och stöd i föräldraskapet. insatsen/aktiviteten kan innebär en utbetalning.
D99: Enhet: 1 samtal (socionom, 2 timmar)
H100: Antal samtal:
D101: Kostnad: | E101: =1700*1.0846 -> 1843.82
D104: Förhandsbedömning | J104: När ett ärenden kommer in till socialtjänsten görs en förhandsbedömning där det tas ställning till vad som bör ske i ärendet. Utgår vanligen från ett standardiserat formulär utifrån riskbedömning, tidigare kontakter med socialtjänsten etcetera.
D105: Enhet: 1 timme (socialsekreterare)
H106: Antal timmar:
D107: Kostnad: | E107: =850*1.0846 -> 921.91
D110: Genomgång av säkerhet | J110: Denna säkerhetsgenomgång innefattar bland annat skalskydd för lägenheten, åtgärdslista vid kontaktförsök, hur lägenhet ska lämnas och hur kvinnan ska agera när hon går på stan.
D111: Enhet: 1 säkerhetsgenomgång (behandlingssekreterare eller kurator, 1,5 timmar)
H114: Antal säkerhetsgenomgångar:
D115: Kostnad: | E115: =1300*1.0846 -> 1409.98
D117: Gruppsamtal | J117: Samtalsstöd i grupp till utsatta, ofta sex till åtta deltagare per grupp. Syftar till att ge stöd på olika sätt.
D118: Enhet: 1 samtal (kurator/ behandlingssekreterare, 2 timmar)
H120: Antal gruppsamtal:
D121: Kostnad: | E121: =1700*1.0846 -> 1843.82
D123: Gruppsamtal (för förövaren) | J123: Samtalsstöd i grupp till förövare, ofta från sex till åtta deltagare.
D124: Enhet: 1 samtal (2 socialsekreterare, 1,5 timmar var)
H126: Antal gruppsamtal (förövare):
D127: Kostnad: | E127: =2500*1.0846 -> 2711.5
D129: Handläggning ekonomiskt bistånd | J129: En ansökan om ekonomiskt bistånd kräver handläggning av en socialsekreterare, vilket även innefattar beslut om godkännande eller avslag.
D130: Enhet: 1 timme (socialsekreterare)
H131: Antal timmar:
D132: Kostnad: | E132: =850*1.0846 -> 921.91
D134: Hemtjänst (indirekt) | J134: Hemtjänsten är en kanal för att notera tecken på våld i nära relation. Kan handla om att använda det strategiskt för att skapa förtroende och vid misstanke om våld försöka få mer information om det och hålla parterna isär.
D135: Enhet: 1 timme (hemtjänstvårdare)
H136: Antal timmar:
D137: Kostnad: | E137: =700*1.0846 -> 759.22
D139: Hjälp med ny bostad (ej skyddat boende) | J139: Personal på skyddat boende hjälper den utsatta att registrera sig på alla bostadsbolag och bevaka möjligheter. När den utsatta får ett boende behövs en träff med hyresvärden, en kartläggning för att fastställa om det är en lämplig bostad att flytta till, samt hjälp med flytt.
D141: Enhet: 1 bostadsärende (kurator, socionom eller liknande, 10 timmar)
H143: Antal bostadsärenden:
D144: Kostnad: | E144: =8300*1.0846 -> 9002.18
D146: Kontaktperson | J146: En kontaktpersonen fungerar som en vän och medmänniska till en ungdom eller vuxen, exempelvis när en individ kommer ny till orten. Genom regelbundna träffar byggs en relation och kontaktpersonen fungerar som en stödperson. Det handlar inte om kontaktperson på skyddat boende. insatsen/aktiviteten innebär en utbetalning.
D147: Enhet: 1 månad (baserad på 3 kontakter per vecka)
H148: Antal månad/er:
D149: Kostnad: | E149: =1200*1.0846 -> 1301.52
D152: Ledsagning till aktiviteter | J152: Ledsagning innebär att en person följer med den utsatta till olika myndigheter etcetera. Det är behandlingssekreterare på skyddat boende som genomför detta.
D153: Enhet: 1 ledsagning (behandlingssekreterare, 1,5 timmar)
H155: Antal ledsagningar:
D156: Kostnad: | E156: =1200*1.0846 -> 1301.52
D158: Orosanmälan | J158: När en orosanmälan kommer in ska den tas emot och skyndsamt hanteras (innefattar ej eventuell utredning).
D159: Enhet: 1 orosanmälan (handläggare, 0,5 timmar)
H160: Antal orosanmälningar:
D161: Kostnad: | E161: =400*1.0846 -> 433.84
D163: Praktiskt stöd i akut situation | J163: Detta praktiska stöd handlar om att få kvinnan i säkerhet. Kan innefatta hjälp att hämta personliga tillhörigheter, hämta på förskolan, samt andra akuta åtgärder.
D164: Enhet: 1 timme (socialsekreterare)
H165: Antal timmar:
D166: Kostnad: | E166: =850*1.0846 -> 921.91
D168: Riskbedömning | J168: En riskdömningen sker i anslutning till en utredning för att bedöma graden av risk för den utsatta. Görs av socialsekreterare.
D169: Enhet: 1 timme (socialsekreterare)
H170: Antal timmar:
D171: Kostnad: | E171: =850*1.0846 -> 921.91
D173: Rådgivande/stödjande samtal | J173: Detta innefattar enskilda samtal med den utsatta för att ge denna stöd i situationen.
D174: Enhet: 1 samtal (kurator/ behandlingssekreterare, 2 timmar)
H176: Antal samtal (rådgivande):
D177: Kostnad: | E177: =1700*1.0846 -> 1843.82
D179: Samarbetssamtal | J179: Samarbetssamtal syftar till att få två föräldrar att samarbeta bättre. Har koppling till vårdnadstvist i någon form, men inte nödvändigtvis i domstol. Är ofta olämpligt att föräldrarna träffas för dessa samtal om det finns en våldsproblematik. Då kan samtal med föräldrarna ske var för sig.
D180: Enhet: 1 samtal (socialsekreterare, 2,5 timmar)
H182: Antal samtal:
D183: Kostnad: | E183: =2100*1.0846 -> 2277.66
D185: Skyddat boende | J185: Boende där den utsatta kan vara under trygga och skyddade omständigheter. Dessa har olika innehåll och säkerhetsgrad, allt från grundläggande boende, till väldigt hög säkerhet. insatsen/aktiviteten kan innebära en utbetalning.
D186: Enhet: 1 dygn (medelhög säkerhetsgrad)
H187: Antal dygn:
D188: Kostnad: | E188: =3000*1.0846 -> 3253.8
D190: Stödjande samtal (för förövaren) | J190: Enskilda stödjande samtal med förövaren i syfte att hjälpa och ge underlag för utveckling. Sker av socialsekreterare.
D191: Enhet: 1 samtal (socialsekreterare, 2 timmar) | H191: Antal stödjande samtal (förövaren):
D193: Kostnad: | E193: =1700*1.0846 -> 1843.82
D195: Tolk | J195: I de fall den utsatta eller förövaren inte har tillräckligt god språkkunskaper i de språk som kommunarbetare talar används tolk. insatsen/aktiviteten innebär vanligen en utbetalning.
D196: Enhet: 1 timme (tolk) | H196: Antal timmar:
D197: Kostnad: | E197: =550*1.0846 -> 596.53
D199: Umgängesstöd | J199: Umgängesstöd kan vara aktuellt när det finns våldsutsatta barn med i bilden. Våldsutövaren får inte träffa barnet själv, utan måste göra det tillsammans med en socialsekreterare.
D200: Enhet: 1 timme (socialsekreterare)
H201: Antal timmar:
D202: Kostnad: | E202: =850*1.0846 -> 921.91
D204: Utredning barn som bevittnat/ upplevt våld | J204: Utredning ska inledas när ett barn misstänks ha blivit utsatt för våld eller bevittnat våld av en närstående. Ska ge beslutsunderlag för lämplig väg framåt, vilket kan innebära ett tvångsomhändertagande av barnet/ungdomen. Genomförs av socialsekreterare.
D206: Enhet: 1 timme (socialsekreterare)
H207: Antal timmar:
D208: Kostnad: | E208: =850*1.0846 -> 921.91
D210: Utredning våldsutsatt vuxen | J210: Utredning som utgår från ett antal konkreta frågor gällande bland annat individens sociala liv, hälsa och vad individen blivit utsatt för. Genomförs av socialsekreterare.
D211: Enhet: 1 timme (socialsekreterare)
H212: Antal timmar:
D213: Kostnad: | E213: =2100*1.0846 -> 2277.66
D215: Utredning vårdnad av barn | J215: Vid en separation kan en utredning om vårdnad bli aktuell. En sådan innefattar bland annat samtal med respektive förälder, barnet/barnen, yrkespersoner i barnets närhet samt hembesök. Genomförs av familjerättssekreterare/socialsekreterare i syfte att skapa beslutsunderlag i vårdnadsfråga.
D216: Enhet: 1 timme (socialsekreterare)
H217: Antal timmar:
D218: Kostnad: | E218: =850*1.0846 -> 921.91
D221: Utredningshem | J221: En eller båda föräldrar är placerade med barnet för att utreda föräldrarnas omsorgsförmåga och barnets behov. Kan handla om att föräldrarna är där halva tiden var. Här inkluderas enbart själva utredningstiden. Utredningshem används ibland också som skyddat boende. Insatsen/aktiviteten innebär en utbetalning.
D222: Enhet: 2 månader | H222: Antal månader:
D223: Kostnad: | E223: =284000*1.0846 -> 308026.4
D226: Egen insats
D227: Ange namn, enhet, kostnad och antal enheter
D228: (Ange namn)
D230: Enhet: | H230: Antal enheter:
D231: Kostnad:
D236: Sammanställning av kostnader
D238: Skola och förskola
D239: =D9 -> Besök skolläkare | I239: =H11*E11 -> 0
D240: =D13 -> Byte av skola | I240: =H16*E16 -> 0
D241: =D18 -> Elevvårdskonferens | I241: =H23*E23 -> 0
D242: =D25 -> Ledsagning till aktiviteter | I242: =H28*E28 -> 0
D243: =D30 -> Orosanmälan (inkl involvering i eventuell utredning) | I243: =H35*E35 -> 0
D244: =D37 -> Samtal skolsköterska | I244: =H41*E41 -> 0
D245: =D43 -> Stödsamtal | I245: =H47*E47 -> 0
D246: Skola och förskola | I246: =SUM(I239:I245) -> 0
D248: Socialtjänst
D249: =D52 -> Behandlingshem | I249: =H54*E54 -> 0
D250: =D58 -> Boendestöd | I250: =H61*E61 -> 0
D251: =D63 -> Boendestöd (indirekt) | I251: =H66*E66 -> 0
D252: =D68 -> Byte av kommun | I252: =H72*E72 -> 0
D253: =D74 -> Daglig verksamhet (indirekt) | I253: =H79*E79 -> 0
D254: =D81 -> Ekonomiskt bistånd | I254: =H83*E83 -> 0
D255: =D87 -> Familjebehandling | I255: =H90*E90 -> 0
D256: =D92 -> Familjehemsplacering | I256: =H94*E94 -> 0
D257: =D98 -> Familjerådgivning | I257: =H101*E101 -> 0
D258: =D104 -> Förhandsbedömning | I258: =H107*E107 -> 0
D259: =D110 -> Genomgång av säkerhet | I259: =H115*E115 -> 0
D260: =D117 -> Gruppsamtal | I260: =H121*E121 -> 0
D261: =D123 -> Gruppsamtal (för förövaren) | I261: =H127*E127 -> 0
D262: =D129 -> Handläggning ekonomiskt bistånd | I262: =H132*E132 -> 0
D263: =D134 -> Hemtjänst (indirekt) | I263: =H137*E137 -> 0
D264: =D139 -> Hjälp med ny bostad (ej skyddat boende) | I264: =H144*E144 -> 0
D265: =D146 -> Kontaktperson | I265: =H149*E149 -> 0
D266: =D152 -> Ledsagning till aktiviteter | I266: =H156*E156 -> 0
D267: =D158 -> Orosanmälan | I267: =H161*E161 -> 0
D268: =D163 -> Praktiskt stöd i akut situation | I268: =H166*E166 -> 0
D269: =D168 -> Riskbedömning | I269: =H171*E171 -> 0
D270: =D173 -> Rådgivande/stödjande samtal | I270: =H177*E177 -> 0
D271: =D179 -> Samarbetssamtal | I271: =H183*E183 -> 0
D272: =D185 -> Skyddat boende | I272: =H188*E188 -> 0
D273: =D190 -> Stödjande samtal (för förövaren) | I273: =H193*E193 -> 0
D274: =D195 -> Tolk | I274: =H197*E197 -> 0
D275: =D199 -> Umgängesstöd | I275: =H202*E202 -> 0
D276: =D204 -> Utredning barn som bevittnat/ upplevt våld | I276: =H208*E208 -> 0
D277: =D210 -> Utredning våldsutsatt vuxen | I277: =H213*E213 -> 0
D278: =D215 -> Utredning vårdnad av barn | I278: =H218*E218 -> 0
D279: =D221 -> Utredningshem | I279: =H223*E223 -> 0
D280: Socialtjänst | I280: =SUM(I249:I279) -> 0
D282: ="Egen insats"&" - "&D228&"" -> Egen insats - (Ange namn) | I282: =H231*E231 -> 0
D284: Summa | I284: =I280+I246+I282 -> 0

Sheet Kommun & Region
C2: Kommun och Region
D3: Tryck Tab eller Enter för att hoppa mellan de ifyllbara cellerna (vita).
D4: En sammanställning av allt som fyllts i presenteras längst ner i bladet.
C7: Ungdomsmottagning
D9: Kartläggande samtal | J9: När individen (ca 13-23 år) kommer till ungdomsmottagningen görs en kartläggning av vad anledningen till uppsökandet är. Utifrån det beslutas om det sker en remittering eller stödsamtal inom ungdomsmottagningen.
D10: Enhet: 1 samtal (kurator, 1 timme) | H10: Antal samtal:
D11: Kostnad: | E11: =850*1.0846 -> 921.91
D13: Stödsamtal enskilt | J13: Innefattar enskilda stödsamtal mellan individen (våldsutsatt eller våldsutförare) och kurator eller barnmorska. Kan exempelvis beröra hedersrelaterat våld, partnervåld i unga år eller hot om internet-spridning av bilder.
D14: Enhet: 1 samtal (kurator/ barnmorska, 1 timme)
H15: Antal samtal:
D16: Kostnad: | E16: =850*1.0846 -> 921.91
D18: Stödsamtal grupp | J18: Om det finns ett flertal individer inom den enskilda ungdomsmottagningen kan en samtalsgrupp skapas där stödsamtal sker i grupp snarare än enskilt. Ofta sex till åtta deltagare.
D19: Enhet: 1 samtal (2 kuratorer, 2 timmar var)
H20: Antal samtal:
D21: Kostnad: | E21: =(850*2*2)*1.0846 -> 3687.64
D23: Gynekologisk undersökning | J23: Efter samtal med kurator kan individen genomgå en gynekologisk undersökning vid ungdomsmottagningen, exempelvis vid sexuellt våld eller könsstympning.
D24: Enhet: 1 undersökning (gyn-läkare) | H24: Antal undersökningar:
D25: Kostnad: | E25: =2000*1.0846 -> 2169.2
D27: Egen insats
D28: Ange namn, enhet, kostnad och antal enheter
D29: (Ange namn)
D31: Enhet: | H31: Antal enheter:
D32: Kostnad:
D37: Sammanställning av kostnader
D39: Ungdomsmottagning
D40: =D9 -> Kartläggande samtal | J40: =H11*E11 -> 0
D41: =D13 -> Stödsamtal enskilt | J41: =H16*E16 -> 0
D42: =D18 -> Stödsamtal grupp | J42: =H21*E21 -> 0
D43: =D23 -> Gynekologisk undersökning | J43: =H25*E25 -> 0
D44: ="Egen insats"&" -"&D29 -> Egen insats -(Ange namn) | J44: =E32*H32 -> 0
D45: Summa | J45: =SUM(J40:J44) -> 0

Sheet Region
C2: Region
D3: Tryck Tab eller Enter för att hoppa mellan de ifyllbara cellerna (vita).
D4: En sammanställning av allt som fyllts i presenteras längst ner i bladet.
C8: Primärvård
D10: Allmänläkarvård | J10: Allmänläkarvård (inklusive jour) innefattar här mottagningsverksamhet på vårdcentral (eller hembesök) av läkare som är specialist i allmänmedicin.
D11: Enhet: 1 vårdkontakt | H11: Antal vårdkontakt/er:
D12: Kostnad: | E12: =1500*1.0846 -> 1626.9
D14: Mödrahälsovård | J14: I mödrahälsovård ingår gynekologiska undersökningar, mammografier, för- och eftervård av gravida kvinnor, samt preventivmedelsrådgivning i anslutning till graviditet. Basal mödrahälsovård som bedrivs på sjukhus redovisas också här.
D15: (inklusive gynekologisk undersökning)
D16: Enhet: 1 vårdkontakt | H16: Antal vårdkontakt/er:
D17: Kostnad: | E17: =2000*1.0846 -> 2169.2
D19: Sjuksköterskevård | J19: Sjuksköterskevård (inklusive jour) handlar här om mottagnings- och hembesök av sjuksköterska.
D20: Enhet: 1 vårdkontakt | H20: Antal vårdkontakt/er:
D21: Kostnad: | E21: =500*1.0846 -> 542.3
C23: Specialisterad vård
D25: Akutmottagning psyk | J25: Akutmottagningen genomför bedömningar av det psykiatriska akuttillstånd, vårdbehov samt eventuella behov av inläggningar på vårdavdelning. Utifrån våld i nära relationer är akutmottagningen aktuell för både den utsatta och förövaren.
D26: Enhet: 1 vårdkontakt | H26: Antal vårdkontakt/er:
D27: Kostnad: | E27: =3800*1.0846 -> 4121.48
D30: Akutmottagning somatisk | J30: Akutmottagningen gör bedömningar av de sökande utifrån ett somatiskt (fysiskt) perspektiv. För våld i nära relationer handlar det huvudsakligen om att den utsatta behöver söka akut vård på grund av fysisk skada.
D31: Enhet: 1 vårdkontakt | H31: Antal vårdkontakt/er:
D32: Kostnad: | E32: =2600*1.0846 -> 2819.96
D34: Ambulans | J34: Ambulansen utgörs av ett sjuktransportmedel (som bil, båt eller helikopter) försedd med medicinsk utrustning och bemannade med ambulanssjukvårdare och/eller sjuksköterska med vidareutbildning.
D35: Enhet: 1 resa (tur och retur) | H35: Antal resor:
D36: Kostnad: | E36: =3300*1.0846 -> 3579.18
D38: Specialiserad psykiatrisk | J38: Dagsjukvården vänder sig till personer med psykiska problem som är för svåra för primärvården att hantera, men inte så omfattande att det krävs slutenvård. Avseende våld i nära relationer kan detta vara aktuellt både för den utsatta och förövaren.
D39: dagsjukvård
D40: Enhet: 1 vårdkontakt | H40: Antal vårdkontakt/er:
D41: Kostnad: | E41: =4300*1.0846 -> 4663.78
D44: Specialiserad psykiatrisk | J44: Specialiserad psykiatrisk vård omfattar områden som allmänpsykiatri, barn- och ungdomspsykiatri och beroendevård. Mottagningsverksamheten innefattar möten med specialister för konsultation.
D45: mottagningsverksamhet
D46: Enhet: 1 vårdkontakt | H46: Antal vårdkontakt/er:
D47: Kostnad: | E47: =4800*1.0846 -> 5206.08
D49: Specialiserad psykiatrisk slutenvård | J49: Slutenvården innefattar ett arbete under längre tid med personer med psykiska problem av olika slag. Patienterna är inlagda på en avdelning för behandling. För våld i nära relationer kan detta gälla både den utsatta och förövaren. Rättspsykiatrisk vård hanteras som en egen post längre ner i listan.
D50: Enhet: 1 vårddygn
D51: (genomsnitt för psykiatrisk slutenvård) | H51: Antal vårddygn:
D52: Kostnad: | E52: =8000*1.0846 -> 8676.8
D54: Specialiserad psykiatrisk slutenvård | J54: Slutenvården innefattar ett arbete under längre tid med personer med psykiska problem av olika slag. Patienterna är inlagda på en avdelning för behandling. För våld i nära relationer kan detta gälla både den utsatta och förövaren.
D55: för barn och ungdomar (BUP)
D56: Enhet: 1 vårddygn (genomsnitt för psykiatrisk slutenvård inom BUP)
H58: Antal vårddygn:
D59: Kostnad: | E59: =20500*1.0846 -> 22234.3
D61: Specialiserad somatisk slutenvård | J61: Slutenvården innefattar mer omfattande medicinsk, kirurgisk och geriatrisk vård där patienten spenderar nätter inom vården. För våld i nära relationer är det kirurgisk vård som huvudsakligen är aktuellt.
D62: Enhet: 1 vårddygn (genomsnitt för somatisk slutenvård)
H63: Antal vårddygn:
D64: Kostnad: | E64: =10200*1.0846 -> 11062.92
D66: Specialiserad somatisk dagsjukvård | J66: Denna dagsjukvård innefattar dagkirurgi, dagmedicin och övrig dagsjukvård (som exempelvis medicinsk dagrehabilitering). För våld i nära relationer är det dagkirurgi som huvudsakligen är aktuellt.
D67: Enhet: 1 vårdkontakt | H67: Antal vårdkontakt/er:
D68: Kostnad: | E68: =5900*1.0846 -> 6399.14
D71: Specialiserad somatisk | J71: Specialiserad somatisk vård innefattar hälso- och sjukvård av fysiskt relaterade åkommor av mer specialiserat slag än inom primärvård. Är uppdelad i bland annat medicinsk och kirurgisk vård. Besök hos mottagningsverksamheten kopplat till våld i nära relationer handlar om att exempelvis träffa kirurg för konsultation.
D72: mottagningsverksamhet
D73: Enhet: 1 vårdkontakt | H73: Antal vårdkontakt/er:
D74: Kostnad: | E74: =3400*1.0846 -> 3687.64
C79: Tandvård
D81: Allmäntandvård | J81: Allmäntandvården innefattar all tandvård som bedrivs på allmänna tandvårdskliniker (folktandvården och motsvarande).
D82: Enhet: 1 vårdkontakt | H82: Antal vårdkontakt/er:
D83: Kostnad: | E83: =2400*1.0846 -> 2603.04
D85: Specialisttandvård | J85: Specialisttandvård får den som har särskilda behov. Sker på remiss från någon form av vårdgivare. Innefattar exempelvis käkkirurgi, avancerad röntgen, tandersättning och tandreglering.
D86: Enhet: 1 vårdkontakt | H86: Antal vårdkontakt/er:
D87: Kostnad: | E87: =6500*1.0846 -> 7049.9
C91: Rättspsykiatrisk avdelning/klinik
D93: Rättspsykiatrisk vård | J93: I de fall en förövare har begått ett våldsbrott under påverkan av allvarlig psykisk störning kan denna inte dömas till fängelse, utan istället till rättspsykiatrisk vård.
D94: Enhet: 1 dygn | H94: Antal dygn:
D95: Kostnad: | E95: =7000*1.0846 -> 7592.2
D97: Läkemedel | J97: Läkemedel handlar här om alla former av medicin.
D98: Enhet: 1 recept | H98: Antal recept:
D99: Kostnad: | E99: =200*1.0846 -> 216.92
D101: Tolk | J101: En tolk används när personen i fråga inte har tillräckliga språkkunskaper och det därför behövs översättning. Insatsen/aktiviteten innebär vanligen en utbetalning.
D102: Enhet: 1 timme | H102: Antal timmar:
D103: Kostnad: | E103: =550*1.0846 -> 596.53
C106: Egen insats
D108: Ange namn, enhet, kostnad och antal enheter
D109: (Ange namn)
D111: Enhet: | H111: Antal enheter:
D112: Kostnad:
D118: Sammanställning av kostnader
D120: Primarvård
D121: =D10 -> Allmänläkarvård | J121: =H12*E12 -> 0
D122: =D14 -> Mödrahälsovård | J122: =H17*E17 -> 0
D123: =D19 -> Sjuksköterskevård | J123: =H21*E21 -> 0
D124: Primarvård | J124: =SUM(J121:J123) -> 0
D126: Specialiserad vård
D127: =D25 -> Akutmottagning psyk | J127: =H27*E27 -> 0
D128: =D30 -> Akutmottagning somatisk | J128: =H32*E32 -> 0
D129: =D34 -> Ambulans | J129: =H36*E36 -> 0
D130: =D38 -> Specialiserad psykiatrisk | J130: =H41*E41 -> 0
D131: =D44 -> Specialiserad psykiatrisk | J131: =H47*E47 -> 0
D132: =D49 -> Specialiserad psykiatrisk slutenvård | J132: =H52*E52 -> 0
D133: =D54 -> Specialiserad psykiatrisk slutenvård | J133: =H59*E59 -> 0
D134: =D61 -> Specialiserad somatisk slutenvård | J134: =H64*E64 -> 0
D135: =D66 -> Specialiserad somatisk dagsjukvård | J135: =H68*E68 -> 0
D136: =D71 -> Specialiserad somatisk | J136: =H74*E74 -> 0
D137: Specialiserad vård | J137: =SUM(J127:J136) -> 0
D139: Tandvård
D140: =D81 -> Allmäntandvård | J140: =H83*E83 -> 0
D141: =D85 -> Specialisttandvård | J141: =H87*E87 -> 0
D142: Tandvård | J142: =SUM(J140:J141) -> 0
D144: Rättspsykiatrisk avdelning/klinik
D145: =D93 -> Rättspsykiatrisk vård | J145: =H95*E95 -> 0
D146: Rättspsykiatrisk avdelning/klinik | J146: =SUM(J145) -> 0
D148: Oberoende av verksamhet
D149: =D97 -> Läkemedel | J149: =H99*E99 -> 0
D150: =D101 -> Tolk | J150: =H103*E103 -> 0
D151: Oberoende av verksamhet | J151: =SUM(J149:J150) -> 0
D153: =C106& " -"&D109 -> Egen insats -(Ange namn) | J153: =H112*E112 -> 0
D155: Summa | J155: =J151+J146+J142+J137+J124+J153 -> 0

Sheet Samv. mellan verksamheter
C2: Samverkan mellan olika verksamheter
D3: Tryck Tab eller Enter för att hoppa mellan de ifyllbara cellerna (vita).
D4: En sammanställning av allt som fyllts i presenteras längst ner i bladet.
D8: Samråd | J8: Samråd kan ske mellan olika verksamheter kring en enskild individ. Tex mellan socialtjänst, polis och sjukvård. Även barnahus, barnläkare, kurator, behandlingshem, åklagare och andra aktörer kan vara involverade.
D9: Enhet: 1 samråd
D10: (30 min, räknat med 3 aktörer) | H10: Antal samråd:
D11: Kostnad: | E11: =1200*1.0846 -> 1301.52
D13: Egen insats
D14: Ange namn, enhet, kostnad och antal enheter
D15: (Ange namn)
D17: Enhet: | H17: Antal enheter:
D18: Kostnad:
D24: Sammanställning av kostnader
D26: Samverkan mellan olika verksamheter
D27: =D8 -> Samråd | J27: =H11*E11 -> 0
D28: =D13&" -"&D15 -> Egen insats -(Ange namn) | J28: =H18*E18 -> 0
D29: Summa | J29: =SUM(J27:J28) -> 0

Sheet Ideella organisationer
C2: Ideella organisationer
D3: Tryck Tab eller Enter för att hoppa mellan de ifyllbara cellerna (vita).
D4: En sammanställning av allt som fyllts i presenteras längst ner i bladet.
C8: Kvinnojour
D10: Skyddat boende | J10: Skyddat boende som Kvinnojouren själv erbjuder. Den utsatta får tillgång till boendet via socialtjänsten. I de flesta fall ingår skydd, stöd (samtalsstöd) och praktisk hjälp. De flesta jourer erbjuder också särskild barnverksamhet till barn som bor hos dem.
D11: Enhet: 1 dygn, 1 person | H11: Antal dygn:
D12: Kostnad: | E12: =1600*1.0846 -> 1735.36
D16: Stödjande aktivitet | J16: Med stödjande aktiviteter avses här aktiviteter riktade till individer som inte finns i kvinnojourens skyddade boende. Exempelvis agera medföljare till myndighet, hjälp till med nytt boende, enskilda-/gruppsamtal, umgängesstöd och barnaktiviteter. Dessa aktiviteter är även tillgängliga för de som finns i skyddat boende, men kostnaden för dessa ingår i föregående post.
D17: Enhet: 1 timme (olika professioner, tex socionom, beteendevetare, kurator)
H19: Antal timmar:
D20: Kostnad: | E20: =800*1.0846 -> 867.68
C24: Brottsofferjour
D26: Stöd från brottsofferjour | J26: Brottsofferjouren arbetar för alla brottsoffers rättighet att få det stöd som behövs för att få kraften tillbaka. Det kan handla om stöd vid kontakter med hjälpinstanser som kan ge till exempel psykologisk hjälp, skyddat boende eller ekonomiskt understöd.
D27: Enhet: 9 timmar (genomsnittlig tidsåtgång för alla typer av brottsoffer)
H29: Antalet stöd:
D30: Kostnad: | E30: =4300*1.0846 -> 4663.78
D33: Egen insats
D34: Ange namn, enhet, kostnad och antal enheter
D35: (Ange namn)
D37: Enhet: | H37: Antal enheter:
D38: Kostnad:
D44: Sammanställning av kostnader
D46: Kvinnojour
D47: =D10 -> Skyddat boende | J47: =H12*E12 -> 0
D48: =D16 -> Stödjande aktivitet | J48: =H20*E20 -> 0
D49: Kvinnojour | J49: =SUM(J47:J48) -> 0
D51: Brottsofferjour
D52: =D26 -> Stöd från brottsofferjour | J52: =H30*E30 -> 0
D53: Brottsofferjour | J53: =SUM(J52) -> 0
D55: =D33&" -"&D35 -> Egen insats -(Ange namn) | J55: =E38*H38 -> 0
D57: Summa | J57: =J49+J53+J55 -> 0

Sheet Stat
C2: Stat
D3: Tryck Tab eller Enter för att hoppa mellan de ifyllbara cellerna (vita).
D4: En sammanställning av allt som fyllts i presenteras längst ner i bladet.
C7: Försäkringskassan
D9: Aktivitetsersättning | J9: Aktivitetsersättning beviljas de som är i åldrarna 19–29 år och som av medicinska skäl har fått sin arbetsförmåga nedsatt med minst en fjärdedel under minst ett år. Ersättningen är alltid tidsbegränsad. Insatsen/aktiviteten innebär en utbetalning.
D10: Enhet: 1 månad sjukersättning
D11: (medelbelopp för all sjukersättning) | H11: Antal månad/er:
D12: Kostnad: | E12: =7900*1.0846 -> 8568.34
D14: Aktivitetsersättning handläggning | J14: Vid ansökan om aktivitetsersättning behöver ärendet handläggas av Försäkringskassan.
D15: Enhet: 1 beslut om ersättning | H15: Antal beslut:
D16: Kostnad: | E16: =11600*1.0846 -> 12581.36
D18: Rehabiliteringspenning | J18: Rehabiliteringspenning kan betalas ut till den som har tillfälligt nedsatt arbetsförmåga på grund av sjukdom eller skada och deltar i arbetslivsinriktad rehabilitering. Insatsen/aktiviteten innebär en utbetalning.
D19: Enhet: 1 dag rehabiliteringspenning (medelbelopp för all rehabiliteringspenning)
H21: Antal dag/ar:
D22: Kostnad: | E22: =500*1.0846 -> 542.3
D24: Rehabiliteringspenning handläggning | J24: Vid ansökan om rehabiliteringspenning behöver ärendet handläggas av Försäkringskassan.
D25: Enhet: 1 genomförd utbetalning | H25: Antal utbetalningar:
D26: Kostnad: | E26: =500*1.0846 -> 542.3
D28: Sjukersättning | J28: Sjukersättning beviljas de som är i åldrarna 30–64 år och som har en stadigvarande nedsatt arbetsförmåga, det vill säga för all överskådlig framtid. Insatsen/aktiviteten innebär en utbetalning.
D29: Enhet: 1 månad sjukersättning (medelbelopp för all sjukpenning)
H30: Antal månad/er:
D31: Kostnad: | E31: =9300*1.0846 -> 10086.78
D33: Sjukersättning handläggning | J33: Vid ansökan om sjukersättning behöver ärendet handläggas av Försäkringskassan.
D34: Enhet: 1 beslut om ersättning | H34: Antal beslut:
D35: Kostnad: | E35: =9400*1.0846 -> 10195.24
D37: Sjukpenning | J37: Försäkringskassan kan betala ut sjukpenning till den som har tillfälligt nedsatt arbetsförmåga på̊ grund av sjukdom eller skada. Detta sker då från dag 15 och framåt. Insatsen/aktiviteten innebär en utbetalning.
D38: Enhet: 1 dag sjukpenning (medelbelopp för all sjukpenning)
H39: Antal dag/ar:
D40: Kostnad: | E40: =600*1.0846 -> 650.76
D42: Sjukpenning handläggning | J42: Vid ansökan om sjukpenning behöver ärendet som helhet handläggas av Försäkringskassan.
D43: Enhet: 1 avslutat sjukfall | H43: Antal avslutade fall:
D44: Kostnad: | E44: =6800*1.0846 -> 7375.28
C47: Skatteverket
D49: Sekretessmarkering och kvarskrivning | J49: En sekretessmarkering gör det svårare för andra att ta del av personens personuppgifter i folkbokföringsregistret. Kallas i dagligt tal för skyddad identitet. Kvarskrivning fungerar som ett adresskydd när en person har flyttat till annan, hemlig adress. Den nya adressen framgår då inte.
D50: Enhet: 1 ärende (medelhög resursåtgång) | H50: Antal ärenden:
D51: Kostnad: | E51: =3800*1.0846 -> 4121.48
C56: Kronofogdemyndigheten
D58: Avskrivna skulder vid skuldsanering | J58: När skuldsanering genomförs skrivs en stor del av de befintliga skulderna av, vilket gör att ekonomiska fodringar aldrig betalas tillbaka.
D59: Enhet: 1 skuldsanering (genomsnittligt avskrivet skuldbelopp för all skuldsanering)
H61: Antal skuldsanering/ar:
D62: Kostnad: | E62: =570000*1.0846 -> 618222
D64: Handläggning skuldsanering | J64: I fall där skuldsanering begärs sker en handläggning av ärendet för att fatta beslut om saneringen ska godkännas eller ej.
D65: Enhet: 1 avslutat ärende | H65: Antal avslutade ärenden:
D66: Kostnad: | E66: =14200*1.0846 -> 15401.32
C69: Brottsoffermyndigheten
D71: Brottsskadeersättning för våldtäkt | J71: Om en dömd gärningsperson inte kan betala skadeståndet och den utsatta inte har någon försäkring som täcker skadan, kan den utsatta i vissa fall få ersättning från staten. Sådan ersättning kallas brottsskadeersättning. Insatsen/aktiviteten innebär en utbetalning.
D72: Enhet: 1 utbetalning av ersättning | H72: Antal erästtningar:
D73: Kostnad:
D77: Brottsskadeersättning våld i nära relation | J77: Om en dömd gärningsperson inte kan betala skadeståndet och den utsatta inte har någon försäkring som täcker skadan, kan den utsatta i vissa fall få ersättning från staten. Sådan ersättning kallas brottsskadeersättning. Insatsen/aktiviteten innebär en utbetalning.
D78: Enhet: 1 utbetalning av ersättning | H78: Antal erästtningar:
D79: Kostnad:
C84: Egen insats
D85: Ange namn, enhet, kostnad och antal enheter
D86: (Ange namn)
D88: Enhet: | H88: Antal enheter:
D89: Kostnad:
D94: Sammanställning av kostnader
D96: Försäkringskassan
D97: =D9 -> Aktivitetsersättning | J97: =H12*E12 -> 0
D98: =D14 -> Aktivitetsersättning handläggning | J98: =H16*E16 -> 0
D99: =D18 -> Rehabiliteringspenning | J99: =H22*E22 -> 0
D100: =D24 -> Rehabiliteringspenning handläggning | J100: =H26*E26 -> 0
D101: =D28 -> Sjukersättning | J101: =H31*E31 -> 0
D102: =D33 -> Sjukersättning handläggning | J102: =H35*E35 -> 0
D103: =D37 -> Sjukpenning | J103: =H40*E40 -> 0
D104: =D42 -> Sjukpenning handläggning | J104: =H44*E44 -> 0
D105: Försäkringskassan | J105: =SUM(J97:J104) -> 0
D107: Skatteverket
D108: =D49 -> Sekretessmarkering och kvarskrivning | J108: =H51*E51 -> 0
D109: Skatteverket | J109: =SUM(J108) -> 0
D111: Kronofogdemyndigheten
D112: =D58 -> Avskrivna skulder vid skuldsanering | J112: =H62*E62 -> 0
D113: =D64 -> Handläggning skuldsanering | J113: =H66*E66 -> 0
D114: Kronofogdemyndigheten | J114: =SUM(J112:J113) -> 0
D116: Brottsoffermyndigheten
D117: =D71 -> Brottsskadeersättning för våldtäkt | J117: =H73*E73 -> 0
D118: =D77 -> Brottsskadeersättning våld i nära relation | J118: =H79*E79 -> 0
D119: Brottsoffermyndigheten | J119: =SUM(J117:J118) -> 0
D121: =C84&" -"&D86 -> Egen insats -(Ange namn) | J121: =H89*E89 -> 0
D123: Summa | J123: =J119+J114+J109+J105+J121 -> 0

Sheet Rättsväsende
C2: Rättsväsende
D3: Tryck Tab eller Enter för att hoppa mellan de ifyllbara cellerna (vita).
D4: En sammanställning av allt som fyllts i presenteras längst ner i bladet.
C9: Polisen
D11: Utredningsverksamhet (inklusive lagföring) | J11: Finns misstanke om brott startas en polisutredning för att samla information om skeendet.
D13: Enhet: 1 utredning och lagföring (genomsnitt alla typer av brott)
H14: Antal utredningar:
D15: Kostnad: | E15: =19300*1.0846 -> 20932.78
C18: Åklagarmyndigheten
D20: Sexualbrott | J20: Vid misstanke om sexualbrott engageras åklagarmyndigheten och en åklagare tillsätts för målet. Åklagaren är den som väcker åtal.
D21: Enhet: 1 åklagarärende vid brottsmisstanke (genomsnitt för alla typer av brott)
H23: Antal åklagarärenden:
D24: Kostnad: | E24: =9200*1.0846 -> 9978.32
D26: Våldsbrott | J26: Vid misstanke om våldsbrott engageras åklagarmyndigheten och en åklagare tillsätts för målet. Åklagaren är den som väcker åtal.
D27: Enhet: 1 åklagarärende vid brottsmisstanke (genomsnitt för alla typer av brott)
H29: Antal åklagarärenden:
D30: Kostnad: | E30: =5000*1.0846 -> 5423
C33: Domstol
D35: Brottsmål – tingsrätt | J35: När ett brottsmål kommer upp i tingsrätten är det domstolen som leder processen framåt, från start till slutligt beslut i målet. Tingsrätten är första rättsliga insats i brottsmål inom domstolsväsendet.
D36: Enhet: 1 genomförande av brottsmål (genomsnitt för alla typer av brottsmål)
H37: Antal brottsmål:
D38: Kostnad: | E38: =16300*1.0846 -> 17678.98
D40: Brottsmål – hovrätt | J40: Hovrätten tar upp ärenden i fall då tingsrättens dom har överklagats. Domstolen leder processen framåt, från start till slutligt beslut i målet.
D41: Enhet: 1 genomförande av brottsmål (genomsnitt för alla typer av brottsmål)
H42: Antal brottsmål:
D43: Kostnad: | E43: =51800*1.0846 -> 56182.28
D45: Tvistemål – tingsrätt | J45: När ett tvistemål kommer upp i tingsrätten är det domstolen som leder processen framåt, från start till slutligt beslut i målet. Tingsrätten är första rättsliga insats i tvistemål inom domstolsväsendet.
D46: Enhet: 1 genomförande av tvistemål (genomsnitt för alla typer av tvistemål)
H47: Antal tvistemål:
D48: Kostnad: | E48: =18400*1.0846 -> 19956.64
D50: Tvistemål – hovrätt | J50: Hovrätten tar upp ärenden i fall då tingsrättens dom har överklagats. Domstolen leder processen framåt, från start till slutligt beslut i målet.
D51: Enhet: 1 genomförande av tvistemål (genomsnitt för alla typer av tvistemål)
H52: Antal tvistemål:
D53: Kostnad: | E53: =43400*1.0846 -> 47071.64
C56: Kriminalvård
D58: Anstalt | J58: När en förövare dömts till fängelse placeras denna på angiven anstalt för att avtjäna sitt straff.
D59: Enhet: 1 dygn | H59: Antal dygn:
D60: Kostnad: | E60: =3400*1.0846 -> 3687.64
D62: Frivård | J62: Frivården övervakar klienter som är villkorligt frigivna, har skyddstillsyn, samhällstjänst eller övervakas med hjälp av fotboja.
D63: Enhet: 1 dygn | H63: Antal dygn:
D64: Kostnad: | E64: =300*1.0846 -> 325.38
D66: Häkte | J66: När en förövare anhållits och begärts häktad av åklagaren placeras förövaren i häktet.
D67: Enhet: 1 dygn | H67: Antal dygn:
D68: Kostnad: | E68: =3600*1.0846 -> 3904.56
C71: Advokatbyrå
D73: Domstolsprocess målsägarbiträde (inklusive stöd under förundersökning) | J73: En brottsmisstänkt person har rätt till en försvarsadvokat, vilket vanligen är en advokat eller jurist anställd vid advokatbyrå. Det handlar om att stödja sin klient under förundersökningen och den eventuella domstolsprocessen.
D75: Enhet: 1 genomförande av domstolsmål (genomsnitt alla typer av mål)
H77: Antal domstolsprocesser:
D78: Kostnad: | E78: =13200*1.0846 -> 14316.72
D80: Domstolsprocess försvarsadvokat (inklusive stöd under förundersökning) | J80: En våldsutsatt har rätt till ett målsägarbiträde vilket vanligen är en advokat eller jurist anställd vid advokatbyrå. Det handlar om att stödja sin klient under förundersökningen och den eventuella domstolsprocessen.
D82: Enhet: 1 genomförande av domstolsmål (genomsnitt alla typer av mål)
H84: Antal domstolsprocesser:
D85: Kostnad: | E85: =18900*1.0846 -> 20498.94
C88: Rättsmedicinalverket
D90: § 7-undersökning | J90: Oftast föregås en rättspsykiatrisk undersökning av en mindre så kallad § 7- undersökning. Det är en timslång utvärdering som kan resultera i att utföraren (Rättsmedicinalverket) rekommenderar domstolen att gå̊ vidare och begära en rättspsykiatrisk undersökning.
D91: Enhet: 1 undersökning (genomsnitt för alla undersökningar)
H92: Antal undersökningar:
D93: Kostnad: | E93: =7100*1.0846 -> 7700.66
D96: Kroppsundersökning | J96: Vid brottsmisstanke kan en kroppsundersökning ske av brottsoffer och gärningsman. I detta ingår även att göra ett sammantaget utlåtande utifrån undersökningen.
D97: Enhet: 1 kroppsundersökning (genomsnitt för alla undersökningar)
H99: Antal kroppsundersökningar:
D100: Kostnad: | E100: =4800*1.0846 -> 5206.08
D102: Rättspsykiatrisk undersökning av häktad | J102: En rättspsykiatrisk undersökning av en häktad person tar vanligen fyra veckor. Under perioden undersöks den misstänkte av ett team bestående av rättspsykiater, psykolog, forensisk socialutredare och omvårdnadspersonal för att tillsammans bilda sig en uppfattning om personens psykiska status vid brottstillfället.
D104: Enhet: 1 undersökning (genomsnitt för alla undersökningar)
H105: Antal undersökningar:
D106: Kostnad: | E106: =479000*1.0846 -> 519523.4
D109: Rättspsykiatrisk undersökning av person på fri fot | J109: En rättspsykiatrisk undersökning för person på fri fot får max ta 6 veckor. Den genomförs ungefär på samma sätt som den rättspsykiatriska undersökningen av en häktad person.
D110: Enhet: 1 undersökning (genomsnitt för alla undersökningar)
H111: Antal undersökningar:
D112: Kostnad: | E112: =71900*1.0846 -> 77982.74
D114: Yttrande | J114: Rättsmedicin lämnar ett yttrande i ett fall där de inte gjort några egna kroppsundersökningar, utan enbart utgått ifrån journal- och polisuppgifter.
D115: Enhet: 1 yttrande (genomsnitt för alla typer av yttranden)
H116: Antal yttranden:
D117: Kostnad: | E117: =3000*1.0846 -> 3253.8
C120: Egen insats
D121: Ange namn, enhet, kostnad och antal enheter
D122: (Ange namn)
D124: Enhet: | H124: Antal enheter:
D125: Kostnad:
D130: Sammanställning av kostnader
D132: Polisen
D133: =D11 -> Utredningsverksamhet (inklusive lagföring) | J133: =H15*E15 -> 0
D134: Polisen | J134: =SUM(J133) -> 0
D136: Åklagarmyndigheten
D137: =D20 -> Sexualbrott | J137: =H24*E24 -> 0
D138: =D26 -> Våldsbrott | J138: =H30*E30 -> 0
D139: Åklagarmyndigheten | J139: =SUM(J137:J138) -> 0
D141: Domstol
D142: =D35 -> Brottsmål – tingsrätt | J142: =H38*E38 -> 0
D143: =D40 -> Brottsmål – hovrätt | J143: =H43*E43 -> 0
D144: =D45 -> Tvistemål – tingsrätt | J144: =H48*E48 -> 0
D145: =D50 -> Tvistemål – hovrätt | J145: =H53*E53 -> 0
D146: Domstol | J146: =SUM(J142:J145) -> 0
D148: Kriminalvård
D149: =D58 -> Anstalt | J149: =H60*E60 -> 0
D150: =D62 -> Frivård | J150: =H64*E64 -> 0
D151: =D66 -> Häkte | J151: =H68*E68 -> 0
D152: Kriminalvård | J152: =SUM(J149:J151) -> 0
D154: Advokatbyrå
D155: =D73 -> Domstolsprocess målsägarbiträde (inklusive stöd under förundersökning) | J155: =H78*E78 -> 0
D156: =D80 -> Domstolsprocess försvarsadvokat (inklusive stöd under förundersökning) | J156: =H85*E85 -> 0
D157: Advokatbyrå | J157: =SUM(J155:J156) -> 0
D159: Rättsmedicinalverket
D160: =D90 -> § 7-undersökning | J160: =H93*E93 -> 0
D161: =D96 -> Kroppsundersökning | J161: =H100*E100 -> 0
D162: =D102 -> Rättspsykiatrisk undersökning av häktad | J162: =H106*E106 -> 0
D163: =D109 -> Rättspsykiatrisk undersökning av person på fri fot | J163: =H112*E112 -> 0
D164: =D114 -> Yttrande | J164: =H117*E117 -> 0
D165: Rättsmedicinalverket | J165: =SUM(J160:J164) -> 0
D167: =C120&" - "&D122 -> Egen insats - (Ange namn) | J167: =H125*E125 -> 0
D169: Summa | J169: =J165+J157+J152+J146+J139+J134+J167 -> 0

Sheet Privat, offentlig & ideel sek
C2: Privat, Offentlig och Ideell sektor
D4: Tryck Tab eller Enter för att hoppa mellan de ifyllbara cellerna (vita).
D5: En sammanställning av allt som fyllts i presenteras längst ner i bladet.
C10: Arbetsgivare
D12: Sjukskrivning (dag 1-14) | J12: När en arbetstagare sjukanmäler sig betalar arbetsgivaren lön (sjuklön) till arbetstagaren från dag 2 till och med dag 14. Ofta krävs ett läkarintyg efter ungefär halva denna period för fortsatt utbetalning av sjuklön. Från dag 15 är det Försäkringskassan som betalar ut eventuell ersättning vid sjukdom.
D13: Enhet: 1 sjuklönedag (inkl. sociala avgifter, utifrån medianlön)
H14: Antal sjuklönedag/ar:
D15: Kostnad: | E15: =1800*1.0846 -> 1952.28
D17: Företagshälsovård | J17: Tillhandahåller arbetsgivaren företagshälsovård till sina anställda kan sådan komma att användas för att stödja utifrån våld i nära relation. I det flesta fall sker dock sådant stöd via det offentliga systemet. Insatsen/aktiviteten innebär en utbetalning.
D18: Enhet: 1 avslutat ärende (utifrån icke fysiskt belastande yrken)
H19: Antal avslutade ärenden:
D20: Kostnad: | E20: =10000*1.0846 -> 10846
D22: Vikarie | J22: När en arbetstagare sjukanmäler sig behöver den ofta ersättas av en vikarie, vilket innebär extra kostnader för arbetsgivaren.
D23: Enhet: 1 arbetsdag vikarie (inkl. sociala avgifter, utifrån medianlön)
H24: Antal arbetsdag/ar:
D25: Kostnad: | E25: =1800*1.0846 -> 1952.28
D27: Egen insats
D28: Ange namn, enhet, kostnad och antal enheter
D29: (Ange namn)
D31: Enhet: | H31: Antal enheter:
D32: Kostnad:
D37: Sammanställning av kostnader
D39: Arbetsgivare
D40: =D12 -> Sjukskrivning (dag 1-14) | J40: =H15*E15 -> 0
D41: =D17 -> Företagshälsovård | J41: =H20*E20 -> 0
D42: =D22 -> Vikarie | J42: =H25*E25 -> 0
D43: =D27&" -"&D29 -> Egen insats -(Ange namn) | J43: =H32*E32 -> 0
D44: Summa | J44: =SUM(J40:J43) -> 0

Sheet Totalkostnad alla org.
C2: Totalkostnad: | E2: =F5+F8+F10+F18+F21+F26+F33 -> 0
C5: Kommun | F5: =SumKommun -> 0
D6: =Kommun!D246 -> Skola och förskola | F6: =Kommun!I246 -> 0
D7: =Kommun!D280 -> Socialtjänst | F7: =Kommun!I280 -> 0
C8: Kommun och region | F8: =SumKommunRegion -> 0
D9: ='Kommun & Region'!D39 -> Ungdomsmottagning | F9: =SumKommunRegion -> 0
C10: Region | F10: =SumRegion -> 0
D11: =Region!D124 -> Primarvård | F11: =Region!J124 -> 0
D12: =Region!D137 -> Specialiserad vård | F12: =Region!J137 -> 0
D13: =Region!D142 -> Tandvård | F13: =Region!J142 -> 0
D14: =Region!D146 -> Rättspsykiatrisk avdelning/klinik | F14: =Region!J146 -> 0
D15: =Region!D151 -> Oberoende av verksamhet | F15: =Region!J151 -> 0
C16: Samverkan mellan olika verksamheter | F16: =SumSamverkan -> 0
D17: ='Samv. mellan verksamheter'!D26 -> Samverkan mellan olika verksamheter | F17: =SumSamverkan -> 0
C18: Ideela organisationer | F18: =SumIdella -> 0
D19: ='Ideella organisationer'!D49 -> Kvinnojour | F19: ='Ideella organisationer'!J49 -> 0
D20: ='Ideella organisationer'!D53 -> Brottsofferjour | F20: ='Ideella organisationer'!J53 -> 0
C21: Stat | F21: =SumStat -> 0
D22: =Stat!D105 -> Försäkringskassan | F22: =Stat!J105 -> 0
D23: =Stat!D109 -> Skatteverket | F23: =Stat!J109 -> 0
D24: =Stat!D114 -> Kronofogdemyndigheten | F24: =Stat!J114 -> 0
D25: =Stat!D119 -> Brottsoffermyndigheten | F25: =Stat!J119 -> 0
C26: Rättsväsende | F26: =SumRättsväsende -> 0
D27: =Rättsväsende!D134 -> Polisen | F27: =Rättsväsende!J134 -> 0
D28: =Rättsväsende!D139 -> Åklagarmyndigheten | F28: =Rättsväsende!J139 -> 0
D29: =Rättsväsende!D146 -> Domstol | F29: =Rättsväsende!J146 -> 0
D30: =Rättsväsende!D152 -> Kriminalvård | F30: =Rättsväsende!J152 -> 0
D31: =Rättsväsende!D157 -> Advokatbyrå | F31: =Rättsväsende!J157 -> 0
D32: =Rättsväsende!D165 -> Rättsmedicinalverket | F32: =Rättsväsende!J165 -> 0
C33: Privat, offentlig och ideel sektor | F33: =SumPrivOffIdSektor -> 0
D34: ='Privat, offentlig & ideel sek'!D39 -> Arbetsgivare | F34: =SumPrivOffIdSektor -> 0

Sheet Ex1 (hidden)
A1: Kommun | B1: Kommun och region | C1: Region | D1: Ideella org | E1: Stat | F1: Rättsväsende | G1: Privat, offentlig och ideell sektor | H1: Samverkan
A2: Antal enheter: | B2: Antal enheter: | C2: Antal enheter: | D2: Antal enheter: | E2: Antal enheter: | F2: Antal enheter: | G2: Antal enheter: | H2: Antal enheter:
C3: 6 | G3: 5
E6: Antal enheter:
A7: Antal enheter: | B7: Antal enheter:
G8: Antal enheter:
C10: Antal enheter: | F10: Antal enheter:
C11: 4 | D11: Antal enheter: | H11: Antal enheter:
B12: Antal enheter: | D12: 8 | E12: Antal enheter:
A13: Antal enheter:
G15: Antal enheter:
E16: Antal enheter: | F16: Antal enheter: | G16: 20
B17: Antal enheter: | C17: Antal enheter:
A18: Antal enheter:
D19: Antal enheter:
E21: Antal enheter:
A24: Antal enheter: | F24: Antal enheter:
A25: 1 | C25: Antal enheter: | E25: Antal enheter:
A29: Antal enheter:
E30: Antal enheter: | F30: Antal enheter:
C31: Antal enheter:
E34: Antal enheter:
A35: Antal enheter:
A36: 4 | F36: Antal enheter:
C37: Antal enheter:
E40: Antal enheter:
C42: Antal enheter: | F42: Antal enheter:
A43: Antal enheter:
F48: Antal enheter:
C49: Antal enheter:
E50: Antal enheter:
A52: Antal enheter: | F52: Antal enheter:
C54: Antal enheter: | E54: Antal enheter:
F56: Antal enheter:
A59: Antal enheter:
C60: Antal enheter: | E60: Summa:
A65: Antal enheter: | C65: Antal enheter: | F65: Antal enheter:
E66: Summa:
C69: Antal enheter:
A72: Antal enheter:
F73: Antal enheter:
C75: Antal enheter:
A76: Totalsumma:
F80: Antal enheter:
A84: Antal enheter: | C84: Antal enheter:
C85: 2
F87: Antal enheter:
C88: Antal enheter:
A90: Antal enheter:
F93: Antal enheter:
C95: Antal enheter:
A98: Antal enheter:
F101: Antal enheter:
C102: Antal enheter:
A105: Antal enheter:
C106: Antal enheter: | F106: Antal enheter:
A113: Antal enheter:
A119: Antal enheter:
A124: Antal enheter:
A129: Antal enheter:
A136: Antal enheter:
A144: Antal enheter:
A149: Antal enheter:
A158: Antal enheter:
A164: Antal enheter:
A165: 1
A169: Antal enheter:
A178: Antal enheter:
A179: 1
A185: Antal enheter:
A186: 8
A193: Antal enheter:
A194: 14
A201: Antal enheter:
A208: Antal enheter:
A209: 10
A214: Antal enheter:
A221: Antal enheter:
A229: Antal enheter:
A230: 10
A235: Antal enheter:
A236: 5
A242: Antal enheter:
A243: 80
A249: Antal enheter:

Sheet Ex2 (hidden)
A1: Kommun | B1: Kommun och region | C1: Region | D1: Ideella org | E1: Stat | F1: Rättsväsende | G1: Privat, offentlig och ideell sektor | H1: Samverkan
A2: Antal enheter: | B2: Antal enheter: | C2: Antal enheter: | D2: Antal enheter: | E2: Antal enheter: | F2: Antal enheter: | G2: Antal enheter: | H2: Antal enheter:
F3: 1 | G3: 14
E6: Antal enheter:
A7: Antal enheter: | B7: Antal enheter:
G8: Antal enheter:
C10: Antal enheter: | F10: Antal enheter:
D11: Antal enheter: | H11: Antal enheter:
B12: Antal enheter: | E12: Antal enheter:
A13: Antal enheter:
G15: Antal enheter:
E16: Antal enheter: | F16: Antal enheter:
B17: Antal enheter: | C17: Antal enheter:
A18: Antal enheter:
D19: Antal enheter:
E21: Antal enheter:
A24: Antal enheter: | F24: Antal enheter:
C25: Antal enheter: | E25: Antal enheter:
A29: Antal enheter:
E30: Antal enheter: | F30: Antal enheter:
C31: Antal enheter: | E31: 195
C32: 1
E34: Antal enheter:
A35: Antal enheter: | E35: 1
F36: Antal enheter:
C37: Antal enheter:
C38: 1
E40: Antal enheter:
E41: 1
C42: Antal enheter: | F42: Antal enheter:
A43: Antal enheter: | C43: 24
F48: Antal enheter:
C49: Antal enheter:
E50: Antal enheter:
A52: Antal enheter: | F52: Antal enheter:
C54: Antal enheter: | E54: Antal enheter:
F56: Antal enheter:
A59: Antal enheter:
C60: Antal enheter: | E60: Summa:
A65: Antal enheter: | C65: Antal enheter: | F65: Antal enheter:
A66: 1 | E66: Summa:
C69: Antal enheter:
C70: 2
A72: Antal enheter:
F73: Antal enheter:
C75: Antal enheter:
A76: Totalsumma:
F80: Antal enheter:
A84: Antal enheter: | C84: Antal enheter:
F87: Antal enheter:
C88: Antal enheter:
A90: Antal enheter:
F93: Antal enheter:
C95: Antal enheter:
A98: Antal enheter:
F101: Antal enheter:
C102: Antal enheter:
A105: Antal enheter:
C106: Antal enheter: | F106: Antal enheter:
A113: Antal enheter:
A119: Antal enheter:
A124: Antal enheter:
A129: Antal enheter:
A136: Antal enheter:
A144: Antal enheter:
A149: Antal enheter:
A158: Antal enheter:
A164: Antal enheter:
A169: Antal enheter:
A178: Antal enheter:
A185: Antal enheter:
A193: Antal enheter:
A201: Antal enheter:
A202: 90
A208: Antal enheter:
A214: Antal enheter:
A221: Antal enheter:
A229: Antal enheter:
A235: Antal enheter:
A236: 3
A242: Antal enheter:
A249: Antal enheter:
